Cogmind - Beta 15 @@@ ROGUE MODE // 2025.07.03 @ 22:02:06 Player: Occam Result: Self-destructed Performance ------------- Evolutions (7) 3500 Regions Visited (34) 6800 Robots Destroyed (376) 1880 Value Destroyed (10790) 10790 Prototype IDs (194) 3880 Alien Tech Used (2) 400 Bonus (7604) 7604 TOTAL SCORE: 34854 Bonus ------- High Alert Combat Kills 289 Follower Combat Kills 2003 Network Hubs Disabled 400 Registered with UFD 300 Met Optimus in HQ 500 Met Zhirov 300 Met Warlord at Base 500 MAIN.C Attacked Warlord 500 Warlord Defense Kills 976 Built Enhanced Grunts 300 A7 Reached Mainframe 300 Met R17 at Cetus 500 Met Optimus at Protoforge 1000 Friendly Fire -264 Cogmind --------- Core Integrity 878/1300 Matter 300/300 Energy 100/100 System Corruption 5% Temperature Cool (0) Movement Core (250) Ox4 Location -3/Protoforge Parts ------- > --- POWER (2) -------- (None) > --- PROPULSION (7) --- Cooled VTOL Module Cooled Impulse Thruster Experimental Surge Thruster Experimental Surge Thruster Experimental Surge Thruster Experimental Surge Thruster > --- UTILITY (10) ----- Advanced Cryofiber Web Medium Storage Unit Plexus Tether Machine Analyzer Experimental Signal Interpreter Experimental Core Analyzer Graphene Brace A0-MCA's Component Scanner > --- WEAPON (2) ------- Experimental Terror Saw > --- INVENTORY (10) --- ECM Suite Authchip [Device] Dimensional Node Initializer Transdimensional Reconstructor Cooled Plasma Cannon Battle Rifle Overtuned Linear Accelerator Mini Smartbomb Launcher Experimental Terror Saw Thermal Lance Peak State ------------ > --- POWER ------------ Backup Power III Micro Antimatter Reactor > --- PROPULSION ------- Experimental VSS Leg Nuclear Pulse Array Field Propulsion Array Cooled Impulse Thruster Cooled Impulse Thruster > --- UTILITY ---------- Medium Storage Unit Deep Structural Scanner Plexus Tether Machine Analyzer Experimental Signal Interpreter Experimental Core Analyzer Advanced Reaction Control System Layered Light Armor Plating Advanced Hacking Suite A0-MCA's Component Scanner > --- WEAPON ----------- Concept XC Strikerail Concept XC Strikerail > --- INVENTORY -------- Cooled VTOL Module ECM Suite Graphene Brace Authchip [Device] Dimensional Node Initializer Transdimensional Reconstructor Cooled Plasma Cannon Battle Rifle Mini Smartbomb Launcher Thermal Lance [Rating: 159] Favorites ----------- Power Cooled Ion Engine Engine Cooled Ion Engine Power Core Light Fission Core Reactor Micro Antimatter Reactor Propulsion Cooled VTOL Module Treads Light Treads Leg Aluminum Leg Wheel Compact Wheel Flight Unit Cooled VTOL Module Utility Structural Scanner Device Structural Scanner Storage Huge Storage Unit Processor Machine Analyzer Hackware Improved Hacking Suite Protection Light Armor Plating Artifact Phase Armor Weapon Enhanced Autogun Energy Gun Beam Rifle Energy Cannon Cooled Plasma Cannon Ballistic Gun Enhanced Autogun Ballistic Cannon Overtuned Linear Accelerator Launcher Mini Smartbomb Launcher Impact Weapon Heavy Flail Slashing Weapon Power Sword Piercing Weapon Thermal Lance Special Melee Weapon Datajack Build | -11 -10 -10 -9 -9 -9 -8 -8 -8 -8 -8 -6 -6 -6 -6 -6 -6 -6 -5 -5 -5 -5 -5 -5 -4 -4 -4 -4 -4 -4 -4 -3 -3 -3 -3 ------- Run | Yrd Mat Min Mat Min Exi Min Mat Sto Rec Scr Fac Was Fac Ext Cet Arc Hub Fac Was Fac Upp Upp Zhi Pro Fac Was Fac Upp Upp War Pro Res Qua Frg Slots Evolved 14 | . . . 2 . . . 2 . . . 4 . . . . . . 2 . . . . . . 2 . . . . . . 2 . . Power 1 | . . . . . . . . . . . . . . . . . . . . . . . . . 1 . . . . . . . . . Propulsion 5 | . . . . . . . . . . . 2 . . . . . . 1 . . . . . . 1 . . . . . . 1 . . Utility 8 | . . . 2 . . . 2 . . . 2 . . . . . . 1 . . . . . . . . . . . . . 1 . . Weapon . | . . . . . . . . . . . . . . . . . . . . . . . . . . . . . . . . . . . Parts Attached 215 | 4 6 9 24 6 1 6 33 24 2 11 18 . 8 6 2 4 . 10 . 4 . 2 . . 11 . 2 . . 3 . 1 1 17 Power 26 | . 2 1 6 . . . 4 3 . 1 . . 1 . . 2 . 2 . . . . . . 3 . . . . . . . . 1 Engine 15 | . 2 1 5 . . . 2 3 . . . . . . . 1 . . . . . . . . 1 . . . . . . . . . Core 9 | . . . 1 . . . 2 . . 1 . . 1 . . 1 . 2 . . . . . . 1 . . . . . . . . . Reactor 2 | . . . . . . . . . . . . . . . . . . . . . . . . . 1 . . . . . . . . 1 Propulsion 48 | 2 . 1 6 1 1 3 8 5 . 2 6 . 1 . . . . 3 . . . . . . 1 . . . . 2 . . . 6 Treads 19 | 2 . . 5 . . 2 5 4 . 1 . . . . . . . . . . . . . . . . . . . . . . . . Leg 1 | . . . . . . . . . . . . . . . . . . . . . . . . . . . . . . . . . . 1 Wheel 8 | . . 1 . 1 1 1 2 1 . 1 . . . . . . . . . . . . . . . . . . . . . . . . Hover . | . . . . . . . . . . . . . . . . . . . . . . . . . . . . . . . . . . . Flight 20 | . . . 1 . . . 1 . . . 6 . 1 . . . . 3 . . . . . . 1 . . . . 2 . . . 5 Utility 97 | 1 3 4 7 3 . 1 13 11 2 7 11 . 4 5 2 2 . 5 . 2 . 2 . . 6 . 1 . . . . 1 1 3 Device 37 | 1 . 3 4 3 . 1 5 6 . 2 . . 1 1 . . . 4 . 1 . 2 . . 1 . 1 . . . . . . 1 Storage 6 | . 2 1 . . . . . . 1 1 . . . . . . . . . . . . . . 1 . . . . . . . . . Processor 14 | . . . . . . . 2 2 1 2 3 . . . . . . . . . . . . . 2 . . . . . . . . 2 Hackware 14 | . . . . . . . . . . 2 4 . 2 . . 2 . . . 1 . . . . 2 . . . . . . 1 . . Protection 25 | . 1 . 3 . . . 6 3 . . 4 . 1 4 2 . . 1 . . . . . . . . . . . . . . . . Artifact 1 | . . . . . . . . . . . . . . . . . . . . . . . . . . . . . . . . . 1 . Weapon 44 | 1 1 3 5 2 . 2 8 5 . 1 1 . 2 1 . . . . . 2 . . . . 1 . 1 . . 1 . . . 7 Energy Gun 15 | . 1 1 2 1 . 1 6 2 . . . . . . . . . . . . . . . . . . . . . . . . . 1 Energy Cannon 1 | . . . . . . . . . . . . . 1 . . . . . . . . . . . . . . . . . . . . . Ballistic Gun 12 | 1 . 1 2 1 . . 1 2 . . 1 . . . . . . . . . . . . . . . 1 . . . . . . 2 Ballistic Cannon 1 | . . . . . . . . . . . . . . . . . . . . . . . . . . . . . . . . . . 1 Launcher 6 | . . . . . . 1 . 1 . . . . . 1 . . . . . 1 . . . . . . . . . 1 . . . 1 Special Weapon . | . . . . . . . . . . . . . . . . . . . . . . . . . . . . . . . . . . . Impact Weapon 2 | . . 1 . . . . 1 . . . . . . . . . . . . . . . . . . . . . . . . . . . Slashing Weapon 4 | . . . . . . . . . . 1 . . 1 . . . . . . . . . . . . . . . . . . . . 2 Piercing Weapon 1 | . . . . . . . . . . . . . . . . . . . . 1 . . . . . . . . . . . . . . Special Melee Weapon 2 | . . . 1 . . . . . . . . . . . . . . . . . . . . . 1 . . . . . . . . . Unidentified Prototypes 13 | . . 1 3 1 . . 3 2 . 1 . . . . . . . . . . . . 1 . . . . . . . . . 1 . Corrupted Parts 3 | . . 2 . . . . . . . 1 . . . . . . . . . . . . . . . . . . . . . . . . System Corruption 14 | . . 11 . . . . . . . 3 . . . . . . . . . . . . . . . . . . . . . . . . Parts Lost 54 | . 3 1 7 2 . 4 13 4 1 1 . . . 2 . 1 . 1 . . . . . . 1 . 2 . . . . . . 11 Power 8 | . 1 . . . . 1 . . . . . . . . . 1 . 1 . . . . . . 1 . 1 . . . . . . 2 Propulsion 14 | . . 1 1 . . 2 4 2 . . . . . . . . . . . . . . . . . . . . . . . . . 4 Utility 24 | . 1 . 5 1 . 1 6 2 1 1 . . . 1 . . . . . . . . . . . . 1 . . . . . . 4 Weapon 8 | . 1 . 1 1 . . 3 . . . . . . 1 . . . . . . . . . . . . . . . . . . . 1 Highest Loss Streak 5 | . 2 1 1 1 . 4 3 1 1 1 . . . 1 . 1 . 1 . . . . . . 1 . 1 . . . . . . 5 To Critical Strikes . | . . . . . . . . . . . . . . . . . . . . . . . . . . . . . . . . . . . Average Backups 16 | 6 16 20 24 24 24 24 24 24 24 23 5 5 4 5 5 5 5 4 5 5 5 5 4 5 4 8 9 9 10 10 10 9 10 9 Power 1 | 1 1 1 1 1 1 . 1 2 2 1 . 1 . . . . . . . . . . . . . 2 1 1 1 1 1 1 1 . Propulsion 3 | 2 2 1 4 6 6 5 5 5 6 5 . 1 . 1 1 1 1 1 2 1 1 1 1 1 . 1 2 2 2 2 2 1 1 . Utility 6 | . 6 10 11 10 10 12 11 10 10 11 2 1 . 1 1 1 1 . 1 1 2 2 2 2 2 2 2 2 3 3 3 3 4 2 Weapon 4 | 1 5 6 6 5 6 5 5 5 5 4 2 2 2 3 3 3 3 2 2 2 2 2 1 1 1 1 2 3 2 2 2 2 2 3 Tool/Special . | . . . . . . . . . . . . . . . . . . . . . . . . . . . . . . . . . . . Unused Backups 36 | . 5 2 8 . . 1 8 . . 4 2 . . . . . . . . . . . . . . . 1 . 1 . . . . 4 Power 2 | . . . . . . 1 . . . 1 . . . . . . . . . . . . . . . . . . . . . . . . Propulsion 3 | . . . 2 . . . . . . 1 . . . . . . . . . . . . . . . . . . . . . . . . Utility 15 | . 3 1 2 . . . 4 . . . 2 . . . . . . . . . . . . . . . 1 . . . . . . 2 Weapon 13 | . 2 1 4 . . . 4 . . 1 . . . . . . . . . . . . . . . . . . 1 . . . . . Tool/Special 3 | . . . . . . . . . . 1 . . . . . . . . . . . . . . . . . . . . . . . 2 Average Slot Usage (%) 95 | . 99 99 98 99 89 97 99 99 99 96 97 100 99 94 93 92 93 92 94 94 94 94 89 94 91 84 86 84 84 87 89 89 88 83 Engine 5 | . 14 14 6 11 11 11 6 6 9 8 . . . . . 3 6 1 . . . . . . 1 . 2 . . 3 5 4 4 3 Core 2 | . . . 4 . . . 2 2 . . 6 6 5 6 6 2 . 3 5 5 5 5 5 5 5 . . . . . . . . . Treads 6 | . 27 19 11 11 11 11 10 9 9 6 . . . . . . . . . . . . . . . . . . . . . . . . Wheel 5 | . . 8 10 11 11 10 7 8 9 11 . . . . . . . . . . . . . . . . . . . . . . . . Flight 10 | . . . . . . . . . . . 25 26 26 26 26 26 26 23 23 23 23 23 23 23 25 21 21 21 21 21 21 23 23 26 Device 18 | . 8 14 22 32 33 31 27 27 30 21 12 13 13 7 13 10 6 13 17 17 17 17 12 17 11 10 9 15 15 15 15 14 14 9 Storage 6 | . 14 14 11 11 11 11 9 9 9 9 . . . . . . . . . . . . . . . 5 5 5 5 5 5 4 4 4 Processor 10 | . . . . . . . 4 7 4 11 19 20 20 20 20 20 20 17 17 17 17 17 17 17 18 15 15 15 15 15 15 14 14 18 Hackware 5 | . . . . . . . . . . 4 13 13 13 13 13 15 20 14 11 11 11 11 11 11 10 10 9 5 5 5 5 8 9 4 Protection 6 | . 5 . 9 . . . 12 10 9 5 5 6 6 11 6 6 6 4 5 5 5 5 5 5 4 5 5 5 5 5 5 4 3 2 Energy Gun 4 | . 9 13 10 11 1 11 12 3 . . . . . . . . . . . . . . . . . . . . . . . . . . Ballistic Gun 7 | . 18 13 10 7 1 9 4 13 18 15 4 6 5 1 . . . . . . . . . . . . . . . 2 5 . . 1 Slashing Weapon 1 | . . . . . . . . . . 1 5 6 6 5 6 6 6 4 5 5 5 5 4 . . . . . . . . . . . Peak Build Rating 159 | 7 10 18 22 32 19 24 32 30 31 45 72 71 79 78 75 77 83 96 96 100 93 98 104 104 125 116 121 116 117 132 125 137 151 159 Average Rating 54 | 6 9 10 18 18 14 20 26 28 30 33 63 71 73 69 74 75 77 88 96 94 92 96 96 104 113 115 116 116 116 125 121 134 131 135 On Entrance 72 | 6 7 10 16 19 19 14 24 30 30 31 38 71 71 77 69 75 77 77 96 96 92 93 98 104 104 116 116 116 116 117 125 121 134 132 Naked Turns . | . . . . . . . . . . . . . . . . . . . . . . . . . . . . . . . . . . . Heaviest Build 109 | 15 51 93 99 96 96 99 109 102 101 102 19 19 20 20 19 26 20 27 27 27 26 23 24 24 34 32 38 37 37 41 39 41 42 42 Greatest Support 55 | 40 40 40 20 16 16 16 40 16 16 46 21 26 28 20 20 20 20 34 28 34 28 28 28 28 43 38 38 38 38 42 42 55 47 55 Greatest Overweight (x) 6 | . 1 5 6 5 5 6 6 6 6 6 . . . . . 1 . 5 . . . . . . . . . . . 1 . . . 4 Average Overweight (x) 1 | . . 3 5 5 5 5 5 5 6 4 . . . . . . . . . . . . . . . . . . . . . . . . Largest Inventory Capacity 25 | 8 20 25 25 25 25 25 25 25 25 25 15 5 5 5 5 5 5 5 5 5 5 5 5 5 10 10 10 10 10 10 10 10 10 10 Average Capacity 16 | 8 17 21 25 25 25 25 25 25 25 24 5 5 5 5 5 5 5 5 5 5 5 5 5 5 5 10 10 10 10 10 10 10 10 10 Most Carried 25 | 8 20 24 25 25 25 25 25 25 25 25 15 5 5 5 5 5 5 5 5 5 5 5 5 5 9 10 10 10 10 10 10 10 10 10 Average Carried 16 | 6 16 20 24 24 24 24 24 24 24 23 5 5 4 5 5 5 4 4 5 4 5 5 4 5 4 8 9 9 9 9 10 9 10 9 Final Capacity 25 | 8 20 25 25 25 25 25 25 25 25 15 5 5 5 5 5 5 5 5 5 5 5 5 5 5 10 10 10 10 10 10 10 10 10 10 Final Carried 25 | 6 20 24 25 24 25 25 25 25 25 15 5 5 5 5 5 5 5 5 5 5 5 5 5 5 8 9 9 10 10 10 10 10 10 10 Class Distribution -------------------- 28% | Scavenger-Mutant 17% | Commander-Mutant 15% | Hacker-Scout 10% | Mutant 10% | Machinist-Scout 3% | Commander-Scout Dominant Class ---------------- Mutant | -10/Materials Mutant | -10/Mines Scavenger-Mutant | -9/Materials Scavenger-Mutant | -9/Mines Scavenger-Mutant | -9/Exiles Scavenger-Mutant | -8/Mines Scavenger-Mutant | -8/Materials Scavenger-Mutant | -8/Storage Commander-Mutant | -8/Recycling Commander-Mutant | -8/Scraptown Hacker-Scout | -6/Factory Hacker-Scout | -6/Waste Hacker-Scout | -6/Factory Commander-Sprinter | -6/Extension Commander-Scout | -6/Cetus Commander-Scout | -6/Archives Commander-Scout | -6/Hub_04(d) Hacker-Scout | -5/Factory Machinist-Scout | -5/Waste Hacker-Scout | -5/Factory Hacker-Ninja | -5/Upper Caves Machinist-Scout | -5/Upper Caves Machinist-Scout | -5/Zhirov Machinist-Scout | -4/Proximity Caves Machinist-Scout | -4/Factory Machinist-Scout | -4/Waste Hacker-Scout | -4/Factory Machinist-Scout | -4/Upper Caves Machinist-Scout | -4/Upper Caves Scout | -4/Warlord Machinist-Scout | -3/Proximity Caves Hacker-Scout | -3/Research Hacker-Scout | -3/Quarantine Scavenger-Sprinter | -3/Protoforge Resources | -11 -10 -10 -9 -9 -9 -8 -8 -8 -8 -8 -6 -6 -6 -6 -6 -6 -6 -5 -5 -5 -5 -5 -5 -4 -4 -4 -4 -4 -4 -4 -3 -3 -3 -3 ----------- Run | Yrd Mat Min Mat Min Exi Min Mat Sto Rec Scr Fac Was Fac Ext Cet Arc Hub Fac Was Fac Upp Upp Zhi Pro Fac Was Fac Upp Upp War Pro Res Qua Frg Matter Collected 8383 | 294 351 115 816 285 94 229 838 947 146 121 260 . 194 550 20 40 50 280 . 245 . 28 . 129 703 50 170 49 . 384 87 399 50 459 Remotely . | . . . . . . . . . . . . . . . . . . . . . . . . . . . . . . . . . . . Salvage Created 14065 | 143 839 91 1668 187 . 357 2298 1515 245 . 996 . 347 786 . 93 . 743 . 624 . 70 . 1 1711 . 256 . . 477 . 394 . 224 Parts 716 | 10 56 11 110 8 . 22 105 85 6 . 38 . 15 29 . 12 . 39 . 49 . 9 . 2 72 . 13 . . 11 . 7 . 7 Haulers Intercepted 13 | . . . 1 . . . 3 5 . . . . . 1 . . . 1 . . . . . . . . . . . . . 2 . . Recyclers Shooed 16 | . 1 . 2 . . 2 3 1 . . 1 . 2 1 . . . . . 2 . . . . 1 . . . . . . . . . Parts Field Recycled . | . . . . . . . . . . . . . . . . . . . . . . . . . . . . . . . . . . . Retrieved Matter . | . . . . . . . . . . . . . . . . . . . . . . . . . . . . . . . . . . . Parts Self-Destructed 8 | . . . . . . . . . . . . . . . . . . . . . . 8 . . . . . . . . . . . . Prevented . | . . . . . . . . . . . . . . . . . . . . . . . . . . . . . . . . . . . Kills | -11 -10 -10 -9 -9 -9 -8 -8 -8 -8 -8 -6 -6 -6 -6 -6 -6 -6 -5 -5 -5 -5 -5 -5 -4 -4 -4 -4 -4 -4 -4 -3 -3 -3 -3 ------- Run | Yrd Mat Min Mat Min Exi Min Mat Sto Rec Scr Fac Was Fac Ext Cet Arc Hub Fac Was Fac Upp Upp Zhi Pro Fac Was Fac Upp Upp War Pro Res Qua Frg Combat Hostiles Destroyed 226 | . 12 . 29 8 . 6 38 24 . . 3 . 2 16 . . . 3 . 10 . 9 . 1 30 . 8 . . 7 . 9 . 11 Melee 30 | . . . . . . . . . . . 3 . 2 5 . . . 3 . 3 . 1 . . 11 . 2 . . . . . . . Guns 118 | . 12 . 29 8 . 4 33 24 . . . . . . . . . . . . . . . . . . . . . . . . . 8 Cannons 2 | . . . . . . . . . . . . . . . . . . . . . . . . . 2 . . . . . . . . . AOE 73 | . . . . . . 2 4 . . . . . . 11 . . . . . 7 . 8 . 1 16 . 5 . . 7 . 9 . 3 Classes Destroyed 21 | 2 6 . 3 1 . 1 2 . . . 1 . . 1 . . . . . . . . . 1 . . . . . 1 . . . 2 Worker 22 | . 1 . 8 . . . 2 1 . . 2 . . . . . . 2 . 2 . . . . 3 . . . . . . . . 1 Builder 22 | . 2 . 1 3 . 2 2 3 . . . . . 1 . . . 1 . 4 . . . . 2 . 1 . . . . . . . Tunneler 11 | 3 2 2 1 . . 1 . . . . 1 . . . . . . 1 . . . . . . . . . . . . . . . . Hauler 13 | . . . 1 . . . 3 5 . . . . . 1 . . . 1 . . . . . . . . . . . . . 2 . . Recycler 33 | 1 2 1 2 . . 1 5 2 3 . 4 . 1 2 . . . 2 . 2 . . . . 5 . . . . . . . . . Mechanic 4 | . . . . . . . 1 . . . 1 . . . . . . 1 . . . . . . . . . . . 1 . . . . Operator 11 | . 3 . 2 . . . 1 . . . . . . 2 . 3 . . . . . . . . . . . . . . . . . . Drone 8 | . . . . . . . . . . . . . . . . . . . . . . . . 1 . . . . . . . . . 7 Watcher 40 | . 2 . 4 . . . 3 2 . . 6 . 4 2 . . . 1 . 5 . . . . 9 . 1 . . . . . . 1 Swarmer 83 | . 3 . 3 . . . 8 7 . . . . . 6 . . . . . 10 . 9 . . 24 . 5 . . . . 5 . 3 Grunt 75 | . 9 . 20 . . 4 23 8 . . . . . 4 . . . . . . . . . . . . . . . 4 . 3 . . Brawler 2 | . . . . . . . 1 . . . . . . . . . . . . . . . . . . . . . . 1 . . . . Duelist 3 | . . . 1 . . 1 . . . . . . . . . . . . . . . . . . . . . . . 1 . . . . Researcher 1 | . . . . . . . . . . . . . . . . . . . . . . . . . . . . . . . . . . 1 Sentry 20 | . . . 5 . . . 6 8 . . . . . 1 . . . . . . . . . . . . . . . . . . . . Specialist 1 | . . . . . . . . . . . . . . . . . . . . . . . . . . . . . . 1 . . . . Hunter 5 | . . . . . . 1 . 1 . . . . . 2 . . . . . . . . . . . . . . . . . 1 . . Programmer 17 | . . . . . . . . . . . 3 . 2 . . . . 3 . . . . . . 6 . 3 . . . . . . . Behemoth 1 | . . . . . . . . . . . . . . 1 . . . . . . . . . . . . . . . . . . . . Decapitator 1 | . . . . . . . . . . . . . . . . . . . . . . . . . . . . . . . . . . 1 Assembled 8 | . . . . 8 . . . . . . . . . . . . . . . . . . . . . . . . . . . . . . Thug 1 | . . . . . . . . . . . . . . 1 . . . . . . . . . . . . . . . . . . . . Guerrilla 1 | . . . . . . . . . . . . . . 1 . . . . . . . . . . . . . . . . . . . . Commander 1 | . . . . . . . . . . . . . . . . . . . . . . . . . . . . . . 1 . . . . Best Kill Streak 12 | 2 4 2 5 3 . 10 12 5 2 . 2 . 1 7 . 3 . 4 . 8 . 5 . 1 5 . 6 . . 3 . 6 . 5 Combat Bots Only 6 | . 4 . 4 3 . 6 6 4 . . 1 . 1 5 . . . 2 . 5 . 5 . 1 5 . 5 . . 3 . 5 . 5 Max Kills in Single Turn 6 | 1 1 1 2 1 . 2 6 2 1 . 1 . 1 3 . 1 . 1 . 5 . 4 . 1 5 . 5 . . 2 . 3 . 3 Gunslinging 1 | . . . 1 . . . . 1 . . . . . . . . . . . . . . . . . . . . . . . . . . Exploded 5 | . . . . . . 1 4 . . . . . . 3 . . . . . 4 . 4 . 1 5 . 4 . . 2 . 3 . 2 Melee 1 | . . . . . . . . . . . 1 . 1 1 . . . 1 . 1 . 1 . . 1 . 1 . . . . . . . Uniques/NPCs Destroyed . | . . . . . . . . . . . . . . . . . . . . . . . . . . . . . . . . . . . Combat | -11 -10 -10 -9 -9 -9 -8 -8 -8 -8 -8 -6 -6 -6 -6 -6 -6 -6 -5 -5 -5 -5 -5 -5 -4 -4 -4 -4 -4 -4 -4 -3 -3 -3 -3 -------- Run | Yrd Mat Min Mat Min Exi Min Mat Sto Rec Scr Fac Was Fac Ext Cet Arc Hub Fac Was Fac Upp Upp Zhi Pro Fac Was Fac Upp Upp War Pro Res Qua Frg Hostile Shots Fired 1257 | . 65 . 122 20 . 31 185 138 . . 50 . 30 190 . 4 2 38 . 12 . 6 . . 97 . 60 4 2 26 . 16 11 148 Missed 539 | . 15 . 37 4 . 12 53 41 . . 31 . 16 90 . 1 . 20 . 5 . 4 . . 56 . 36 1 1 20 . 13 4 79 Hits 718 | . 50 . 85 16 . 19 132 97 . . 19 . 14 100 . 3 2 18 . 7 . 2 . . 41 . 24 3 1 6 . 3 7 69 Melee 28 | . . . . 7 . . . . . . . . . . . . . . . . . . . . . . . . . . . . . 21 Projectile 690 | . 50 . 85 9 . 19 132 97 . . 19 . 14 100 . 3 2 18 . 7 . 2 . . 41 . 24 3 1 6 . 3 7 48 AOE 7 | . . . . . . . . . . . . . . . . . . . . . . . . . 1 . . . . . . . . 6 Critical Strikes 37 | . 1 . . . . 1 2 6 . . 1 . 1 . . . . . . . . . . . 3 . . . . . . 1 . 21 Actively Blocked 17 | . . . . . . . . . . . . . . . . . . . . . . . . . . . . . . . . . . 17 Part Disruptions 1 | . . . . . . . . . . . 1 . . . . . . . . . . . . . . . . . . . . . . . Damage Taken 11102 | . 547 28 1125 318 . 282 1908 1207 15 156 283 . 148 956 . 74 39 402 . 110 . 29 . . 712 . 481 61 22 . . 59 85 2055 Core 1702 | . 111 12 203 79 . 33 179 99 . . 73 . 39 185 . 23 . 17 . 52 . . . . 131 . 23 21 . . . 14 30 378 Absorbed by Shields 165 | . . . . . . . . . . . . . . 165 . . . . . . . . . . . . . . . . . . . . Redirected to Shielding 93 | . . . . . . . 93 . . . . . . . . . . . . . . . . . . . . . . . . . . . Regen/Repaired (Parts) 1354 | . . . 53 . . . . 19 . . 18 . 133 . . . . 439 . . . . . . 465 . 22 . . 59 . . 146 . Core Remaining (%) 65 | 100 . 50 . . . 21 . . . 49 . . . . . . 62 . . . . . . 93 . . . . . . 84 . . . Volleys Fired 817 | 9 69 8 116 33 . 27 161 106 3 . . . 2 7 . . 3 20 . 33 . 5 . 1 38 . 38 10 5 16 5 36 14 52 Largest 2 | 2 2 2 2 2 . 2 2 2 2 . . . 1 1 . . 1 1 . 1 . 1 . 1 1 . 1 1 1 1 1 1 1 2 Hottest 140 | 40 50 60 79 98 . 98 140 88 50 . . . 35 50 . . 35 35 . 80 . 80 . 80 105 . 80 35 35 105 35 80 35 105 Shots Fired 1342 | 18 138 16 232 66 . 50 311 211 7 . . . 2 7 . . 3 20 . 33 . 5 . 1 38 . 38 10 5 16 5 36 14 60 Gun 1075 | 18 138 16 232 66 . 46 310 211 7 . . . . . . . . . . . . . . . . . . . . . . . . 31 Cannon 201 | . . . . . . . . . . . . . 2 . . . 3 20 . 28 . . . . 31 . 35 10 5 1 5 23 14 24 Launcher 66 | . . . . . . 4 1 . . . . . . 7 . . . . . 5 . 5 . 1 7 . 3 . . 15 . 13 . 5 Special . | . . . . . . . . . . . . . . . . . . . . . . . . . . . . . . . . . . . Kinetic 534 | 18 94 8 116 33 . 22 68 142 7 . . . . . . . . . . . . . . . . . . . . . . . . 26 Thermal 742 | . 44 8 116 33 . 24 242 69 . . . . 2 . . . 3 20 . 28 . . . . 31 . 35 10 5 1 5 23 14 29 Explosive 66 | . . . . . . 4 1 . . . . . . 7 . . . . . 5 . 5 . 1 7 . 3 . . 15 . 13 . 5 Electromagnetic . | . . . . . . . . . . . . . . . . . . . . . . . . . . . . . . . . . . . Robot Hit Streak 24 | 5 8 4 16 8 . 13 12 23 3 . . . . 4 . . . . . . . . . . 4 . . . . . . 5 . 24 Robot Miss Streak 8 | 2 3 2 5 3 . 3 6 4 1 . . . . 8 . . . . . . . . . . . . . . . . . 1 . 4 Penetration Max 1 | . . . . . . . . . . . . . . . . . . . . . . . . . . . . . . . . . . 1 Secondary Targets 12 | . 2 . 3 1 . . 2 4 . . . . . . . . . . . . . . . . . . . . . . . . . . Max Gunslinging Chain 1 | . 1 . 1 1 . . 1 1 . . . . . . . . . . . . . . . . . . . . . . . . . . Shots Hit Robots 907 | 10 80 9 153 39 4 34 200 147 4 . 27 . 20 21 . 5 1 27 . 20 . 2 . . 54 . 15 . . . . 5 . 30 Core Hits 562 | 5 39 4 62 13 . 18 96 60 3 . 14 . 4 81 . 2 . 11 . 22 . 7 . 2 35 . 7 . . 26 . 29 . 22 Critical Kills 3 | . . . . . . . 1 . . . . . . . . . . . . . . . . . 1 . . . . . . 1 . . Critical Parts Destroyed 7 | . 1 . . . . . 1 1 . . . . . . . . . . . . . . . . . . . . . . . . . 4 Critical Strikes 37 | . 1 . 7 2 . 1 11 3 . . . . . 2 . . . 1 . . . . . . 1 . . . . . . 1 . 7 Burn 21 | . . . 7 2 . 1 9 2 . . . . . . . . . . . . . . . . . . . . . . . . . . Meltdown 2 | . . . . . . . . . . . . . . . . . . . . . . . . . 1 . . . . . . 1 . . Destroy 8 | . 1 . . . . . 2 1 . . . . . . . . . . . . . . . . . . . . . . . . . 4 Sever 6 | . . . . . . . . . . . . . . 2 . . . 1 . . . . . . . . . . . . . . . 3 Melee Attacks 471 | . . . 1 2 4 . 6 3 . . 59 . 74 21 . 5 10 54 . 42 . 5 . . 114 . 46 . . 4 . 10 . 11 Thermal 179 | . . . . . . . . . . . . . . . . . . . . . . . . . 113 . 46 . . 4 . 10 . 6 Impact 12 | . . . 1 2 . . 6 3 . . . . . . . . . . . . . . . . . . . . . . . . . . Slashing 275 | . . . . . . . . . . . 59 . 74 21 . 5 10 54 . 42 . 5 . . . . . . . . . . . 5 Piercing . | . . . . . . . . . . . . . . . . . . . . . . . . . . . . . . . . . . . Sneak Attacks 62 | . . . . 1 4 . . . . . 11 . 5 3 . 5 . 9 . 5 . . . . 15 . . . . . . 2 . 2 Combat Hostiles 2 | . . . . . . . . . . . . . . . . . . 1 . . . . . . 1 . . . . . . . . . Follow-up Attacks . | . . . . . . . . . . . . . . . . . . . . . . . . . . . . . . . . . . . Damage Inflicted 39076 | 127 972 98 2396 819 . 970 3856 2668 105 . 1708 . 1153 3658 . 542 50 1578 . 2152 . 793 . 118 6832 . 1773 . . 2196 . 2642 . 1870 Guns 11854 | 127 946 94 2396 687 . 551 3386 2668 105 . . . . . . . . . . . . . . . . . . . . . . . . 894 Cannons 194 | . . . . . . . . . . . . . . . . . . . . . . . . . 100 . . . . . . 62 . 32 Explosions 12274 | . 26 . . . . 419 319 . . . . . . 2824 . . . . . 922 . 697 . 118 1469 . 436 . . 2196 . 2220 . 628 Melee 14750 | . . . . 132 . . 151 . . . 1708 . 1153 834 . 542 50 1578 . 1230 . 96 . . 5263 . 1337 . . . . 360 . 316 Ramming 4 | . . 4 . . . . . . . . . . . . . . . . . . . . . . . . . . . . . . . . Kinetic 5872 | 127 666 35 1337 235 . 188 636 1748 105 . . . . . . . . . . . . . . . . . . . . . . . . 795 Thermal 13330 | . 280 59 1059 452 . 363 2750 920 . . . . . 52 . . . . . . . . . . 5363 . 1337 . . . . 422 . 273 Explosive 12196 | . . . . . . 419 319 . . . . . . 2772 . . . . . 922 . 697 . 118 1469 . 436 . . 2196 . 2220 . 628 Electromagnetic 26 | . 26 . . . . . . . . . . . . . . . . . . . . . . . . . . . . . . . . . Impact 315 | . . . . 132 . . 151 . . . . . . . . . . . . . . . . . . . . . . . . . . 32 Slashing 7333 | . . . . . . . . . . . 1708 . 1153 834 . 542 50 1578 . 1230 . 96 . . . . . . . . . . . 142 Piercing . | . . . . . . . . . . . . . . . . . . . . . . . . . . . . . . . . . . . Highest Corruption 11 | . . 11 2 5 5 5 2 4 4 3 1 1 1 . . . . 2 . . . . . . . . 3 3 3 3 . . . 5 Average Corruption 2 | . . 8 2 2 5 5 1 2 4 2 1 1 1 . . . . 1 . . . . . . . . 2 3 3 3 . . . 5 Corruption Purged 7 | . . . . . . . . . . 3 . . 1 . . . . 3 . . . . . . . . . . . . . . . . Corruption Blocked 4 | . . . . . . . . . . . . . . . . . . . . . . . . . 4 . . . . . . . . . Effects 153 | . . . 33 17 9 12 15 23 19 5 1 . 3 . . . . 5 . . . . . . . . 2 4 1 . . . . 4 Message Errors 34 | . . . 6 5 3 3 2 5 6 1 1 . . . . . . 1 . . . . . . . . . . . . . . . 1 Matter Fused 49 | . . . 10 7 3 4 4 7 5 2 . . 2 . . . . 2 . . . . . . . . 1 1 . . . . . 1 Heat Flow Errors 18 | . . . 5 2 2 1 1 2 2 . . . 1 . . . . . . . . . . . . . . 1 1 . . . . . Energy Discharges 17 | . . . 4 1 . . 6 3 2 1 . . . . . . . . . . . . . . . . . . . . . . . . Parts Rejected 5 | . . . 1 1 . 1 1 . . . . . . . . . . . . . . . . . . . 1 . . . . . . . Parts Fused 1 | . . . . . . . 1 . . . . . . . . . . . . . . . . . . . . . . . . . . . Data Loss (minor) 20 | . . . 7 1 1 1 . 3 2 1 . . . . . . . 1 . . . . . . . . . 2 . . . . . 1 Data Loss (major) 1 | . . . . . . . . . . . . . . . . . . 1 . . . . . . . . . . . . . . . . Misfires 4 | . . . . . . 1 . 2 1 . . . . . . . . . . . . . . . . . . . . . . . . . Alerts 2 | . . . . . . . . . 1 . . . . . . . . . . . . . . . . . . . . . . . . 1 Weapon Failures 2 | . . . . . . 1 . 1 . . . . . . . . . . . . . . . . . . . . . . . . . . Overload Shots 3 | . . . . . . . . . . . . . . . . . . . . . . . . . 1 . . . . 1 . . . 1 Overflow Damage 4225 | . . . . 92 . 26 10 . . . 297 . 349 177 . 195 . 163 . 224 . 86 . . 2023 . 458 . . . . 69 . 56 Projectiles 65 | . . . . . . . . . . . . . . . . . . . . . . . . . 41 . . . . . . 2 . 22 Explosions 273 | . . . . . . 26 10 . . . . . . 19 . . . . . 10 . 59 . . 91 . . . . . . 58 . . Melee 3887 | . . . . 92 . . . . . . 297 . 349 158 . 195 . 163 . 214 . 27 . . 1891 . 458 . . . . 9 . 34 Knockbacks . | . . . . . . . . . . . . . . . . . . . . . . . . . . . . . . . . . . . Impact . | . . . . . . . . . . . . . . . . . . . . . . . . . . . . . . . . . . . Kinetic . | . . . . . . . . . . . . . . . . . . . . . . . . . . . . . . . . . . . Secondary . | . . . . . . . . . . . . . . . . . . . . . . . . . . . . . . . . . . . Self-Inflicted Damage 159 | . . . . . . . . . . . . . . 159 . . . . . . . . . . . . . . . . . . . . Shots 7 | . . . . . . . . . . . . . . 7 . . . . . . . . . . . . . . . . . . . . Rammed 2 | . . 2 . . . . . . . . . . . . . . . . . . . . . . . . . . . . . . . . Targets Rammed 2 | . . 2 . . . . . . . . . . . . . . . . . . . . . . . . . . . . . . . . Kicked . | . . . . . . . . . . . . . . . . . . . . . . . . . . . . . . . . . . . Crushed . | . . . . . . . . . . . . . . . . . . . . . . . . . . . . . . . . . . . Highest Temperature 342 | . 76 20 285 209 173 266 342 194 182 . 7 250 224 3 . . . 53 . 60 . 77 . . 179 . 184 88 153 92 . 58 . . Average Temperature 52 | . 22 10 66 63 83 133 53 33 87 . 4 129 104 2 . . . 26 . 22 . 37 . . 41 . 48 47 77 31 . 26 . . Received Heat Transfer 2922 | . 252 . 492 40 . 144 900 558 9 . 102 . . 118 . 9 18 36 . . . . . . 49 . 60 12 . . . . 36 87 Effects 1 | . . . 1 . . . . . . . . . . . . . . . . . . . . . . . . . . . . . . . Energy Bleed 1 | . . . 1 . . . . . . . . . . . . . . . . . . . . . . . . . . . . . . . Siege Activations . | . . . . . . . . . . . . . . . . . . . . . . . . . . . . . . . . . . . Martial Activations . | . . . . . . . . . . . . . . . . . . . . . . . . . . . . . . . . . . . Shielding Activations . | . . . . . . . . . . . . . . . . . . . . . . . . . . . . . . . . . . . Robots Disrupted . | . . . . . . . . . . . . . . . . . . . . . . . . . . . . . . . . . . . Combat Hostiles . | . . . . . . . . . . . . . . . . . . . . . . . . . . . . . . . . . . . Robots Corrupted 1 | . . . . . . . . . . . . . . . . . . . . . . . . . . . . . . . . . . 1 Combat Hostiles . | . . . . . . . . . . . . . . . . . . . . . . . . . . . . . . . . . . . Parts Fried 8 | . . . . 4 . . . . . . . . . 1 . . . . . . . . . . . . . . . . . . . 3 Impact Corruptions 2 | . . . . 1 . . . . . . . . . . . . . . . . . . . . . . . . . . . . . 1 Robots Melted 5 | . . . . . . . 1 . . . . . . . . . . . . . . . . . 2 . 1 . . . . 1 . . Combat Hostiles 3 | . . . . . . . 1 . . . . . . . . . . . . . . . . . 1 . 1 . . . . . . . Parts Melted 39 | . . . 7 . . 1 15 4 . . . . . . . . . . . . . . . . 8 . 2 . . . . 2 . . Heat Transferred 23575 | . 750 150 3108 962 . 703 6808 2146 . . . . . 50 . . . . . . . . . . 6250 . 1800 . . . . 460 . 388 Parts Sabotaged . | . . . . . . . . . . . . . . . . . . . . . . . . . . . . . . . . . . . Parts Stolen . | . . . . . . . . . . . . . . . . . . . . . . . . . . . . . . . . . . . Parts Stripped . | . . . . . . . . . . . . . . . . . . . . . . . . . . . . . . . . . . . Power Chain Reactions . | . . . . . . . . . . . . . . . . . . . . . . . . . . . . . . . . . . . Alert | -11 -10 -10 -9 -9 -9 -8 -8 -8 -8 -8 -6 -6 -6 -6 -6 -6 -6 -5 -5 -5 -5 -5 -5 -4 -4 -4 -4 -4 -4 -4 -3 -3 -3 -3 ------- Run | Yrd Mat Min Mat Min Exi Min Mat Sto Rec Scr Fac Was Fac Ext Cet Arc Hub Fac Was Fac Upp Upp Zhi Pro Fac Was Fac Upp Upp War Pro Res Qua Frg Maximum Alert Level 3 | . . . 1 . . . 2 1 . . . . . 2 2 1 1 1 . 2 . . . . 3 . 2 . . . . 1 1 2 Low Security (%) 66 | 100 100 100 74 100 . 100 46 38 100 . 100 100 100 61 . 28 67 52 100 68 . . . . 29 100 56 . . . . 57 . 12 Level 1 23 | . . . 25 . . . 43 61 . . . . . 27 25 71 32 47 . 21 . . . . 20 . 16 . . . . 42 100 47 Level 2 9 | . . . . . . . 10 . . . . . . 11 74 . . . . 9 . . . . 44 . 26 . . . . . . 40 Level 3 . | . . . . . . . . . . . . . . . . . . . . . . . . . 5 . . . . . . . . . Level 4 . | . . . . . . . . . . . . . . . . . . . . . . . . . . . . . . . . . . . Level 5 . | . . . . . . . . . . . . . . . . . . . . . . . . . . . . . . . . . . . High Security . | . . . . . . . . . . . . . . . . . . . . . . . . . . . . . . . . . . . Max Security . | . . . . . . . . . . . . . . . . . . . . . . . . . . . . . . . . . . . Peak Influence 867 | 10 152 5 324 124 . 130 445 325 128 . 175 39 146 664 510 292 393 298 51 457 . . . . 867 148 502 . . . . 383 283 493 Initial 350 | . . . 1 124 . . 31 180 94 . . 39 27 28 350 188 77 190 51 28 . . . . . 148 82 . . . . . 215 135 Average 157 | 2 14 . 131 12 . 36 238 228 53 . 62 39 52 169 433 239 158 172 50 108 . . . . 345 133 257 . . . . 195 245 357 Influence Increases 12850 | 20 401 15 1069 16 . 195 1134 780 310 . 746 . 546 1350 340 194 472 593 . 779 . 200 . 5 1463 . 800 . . 145 . 532 116 629 Destroy 0b10 Robot/C 5100 | . 240 . 660 . . 120 760 480 60 . 140 . 40 580 160 80 160 60 . 200 . 180 . . 600 . 160 . . 140 . 180 . 100 Destroy 0b10 Robot/NC 870 | 20 60 15 95 15 . 20 85 65 15 . 70 . 25 60 10 15 20 45 . 65 . . . 5 95 . 10 . . 5 . 10 . 45 Destroy Leader 1046 | . 54 . 180 . . 30 162 134 . . 62 . 28 96 . . 50 24 . 30 . 20 . . 108 . 32 . . . . 24 . 12 Allied During Kill 852 | . . . 27 . . . . . 51 . 51 . . 362 137 95 129 . . . . . . . . . . . . . . . . . Successful Hack 903 | . 31 . 43 . . . 23 32 19 . 49 . 65 23 5 . 2 154 . 95 . . . . 116 . 102 . . . . 3 72 69 Select Force Hacks 200 | . . . . . . . . . 150 . . . . . . . 50 . . . . . . . . . . . . . . . . . Disable Machine 390 | . 15 . 45 . . . 60 30 15 . . . . 60 . . 30 . . . . . . . 15 . 30 . . . . . 30 60 Destroy Structure 1164 | . 1 . 4 1 . 25 14 9 . . 29 . 43 109 13 4 16 70 . 194 . . . . 244 . 136 . . . . 150 14 88 Partial Spotted 510 | . . . . . . . . . . . 120 . . 15 . . 15 30 . 45 . . . . 120 . 90 . . . . 60 . 15 Lose Combat Pursuer 1815 | . . . 15 . . . 30 30 . . 225 . 345 45 15 . . 210 . 150 . . . . 165 . 240 . . . . 105 . 240 Influence Decreases 12516 | 20 401 10 754 336 . 112 789 964 530 24 632 75 526 783 496 442 305 835 106 364 239 132 285 5 1040 305 422 274 73 239 55 149 258 536 Entered New Map 3315 | . . . 4 196 . . 52 248 150 24 . 75 12 31 276 282 145 199 96 13 169 42 285 . . 275 36 184 43 149 55 . 168 106 Time Decay 6354 | 20 260 10 480 140 . 72 607 506 307 . 363 . 366 298 180 150 40 354 10 331 70 90 . 5 560 30 356 90 30 90 . 139 90 310 Lost Part 473 | . 13 . 60 . . 40 130 40 10 . . . . 20 . 10 . 10 . . . . . . 10 . 20 . . . . . . 110 Lost Ally 461 | . . . 60 . . . . 20 . . 119 . 10 20 40 . 120 2 . 20 . . . . 20 . 10 . . . . 10 . 10 Purge Threat 1913 | . 128 . 150 . . . . 150 63 . 150 . 138 414 . . . 270 . . . . . . 450 . . . . . . . . . Squads Dispatched 105 | . 4 . 7 . . 1 5 5 . . 15 . 13 5 . . 5 4 . 11 . . . . 14 . 6 . . . . 6 1 3 Investigation 58 | . 1 . 5 . . . 3 . . . 11 . 9 1 . . 3 3 . 7 . . . . 8 . 4 . . . . 2 . 1 Extermination 15 | . . . . . . . . . . . 2 . 2 . . . . 1 . 2 . . . . 4 . 2 . . . . . 1 1 Reinforcement 25 | . 3 . 2 . . 1 2 3 . . 2 . 2 4 . . 2 . . 1 . . . . . . . . . . . 2 . 1 Assault 3 | . . . . . . . . . . . . . . . . . . . . 1 . . . . 2 . . . . . . . . . Garrison 4 | . . . . . . . . 2 . . . . . . . . . . . . . . . . . . . . . . . 2 . . Intercept . | . . . . . . . . . . . . . . . . . . . . . . . . . . . . . . . . . . . Searches Triggered . | . . . . . . . . . . . . . . . . . . . . . . . . . . . . . . . . . . . Construction Impeded 6 | . . . . . . 1 1 1 . . 1 . . 2 . . . . . . . . . . . . . . . . . . . . Haulers Reinforced 1 | . . . . . . . . . . . . . . . . . . . . . . . . . . . . . . . . 1 . . Active Scanning Responses . | . . . . . . . . . . . . . . . . . . . . . . . . . . . . . . . . . . . Cargo Convoy Interrupts . | . . . . . . . . . . . . . . . . . . . . . . . . . . . . . . . . . . . Stealth | -11 -10 -10 -9 -9 -9 -8 -8 -8 -8 -8 -6 -6 -6 -6 -6 -6 -6 -5 -5 -5 -5 -5 -5 -4 -4 -4 -4 -4 -4 -4 -3 -3 -3 -3 --------- Run | Yrd Mat Min Mat Min Exi Min Mat Sto Rec Scr Fac Was Fac Ext Cet Arc Hub Fac Was Fac Upp Upp Zhi Pro Fac Was Fac Upp Upp War Pro Res Qua Frg Distress Signals 36 | . 1 . 3 . . . 3 . . . 1 . . 4 2 . 3 3 . . . . . . 3 . 4 . . . . 5 . 4 Communications Jammed . | . . . . . . . . . . . . . . . . . . . . . . . . . . . . . . . . . . . Distress Signals . | . . . . . . . . . . . . . . . . . . . . . . . . . . . . . . . . . . . Times Spotted 515 | . 18 . 49 8 . 6 57 35 2 . 36 4 35 33 7 5 10 16 4 21 . 1 . . 56 . 41 3 1 4 . 17 4 42 Peak Tracking Total 15 | . 4 . 4 2 . 4 6 4 2 . 6 4 6 6 5 1 7 7 4 5 . 2 . . 9 . 15 3 1 4 . 9 3 10 Tactical Retreats 69 | . . . 1 . . . 2 2 . . 5 . 12 2 1 . . 5 . 5 . . . . 12 . 10 . . . . 4 2 6 Traps | -11 -10 -10 -9 -9 -9 -8 -8 -8 -8 -8 -6 -6 -6 -6 -6 -6 -6 -5 -5 -5 -5 -5 -5 -4 -4 -4 -4 -4 -4 -4 -3 -3 -3 -3 ------- Run | Yrd Mat Min Mat Min Exi Min Mat Sto Rec Scr Fac Was Fac Ext Cet Arc Hub Fac Was Fac Upp Upp Zhi Pro Fac Was Fac Upp Upp War Pro Res Qua Frg Traps Triggered 20 | . 1 2 1 . . . 1 1 . 1 4 . 2 2 . . . 1 . 1 . . . . 3 . . . . . . . . . Indirectly . | . . . . . . . . . . . . . . . . . . . . . . . . . . . . . . . . . . . Trap Hack Attempts 34 | . . . 34 . . . . . . . . . . . . . . . . . . . . . . . . . . . . . . . Triggered . | . . . . . . . . . . . . . . . . . . . . . . . . . . . . . . . . . . . Disarmed 5 | . . . . . . . . . . . . . . 5 . . . . . . . . . . . . . . . . . . . . Reprogrammed 3 | . . . 3 . . . . . . . . . . . . . . . . . . . . . . . . . . . . . . . Reused . | . . . . . . . . . . . . . . . . . . . . . . . . . . . . . . . . . . . Traps Extracted 3 | . . . 3 . . . . . . . . . . . . . . . . . . . . . . . . . . . . . . . Installed 1 | . . . . . . . . . . 1 . . . . . . . . . . . . . . . . . . . . . . . . Triggered . | . . . . . . . . . . . . . . . . . . . . . . . . . . . . . . . . . . . Most Traps Carried 3 | . . . 3 3 3 3 3 3 3 3 2 . . . . . . . . . . . . . . . . . . . . . . . Machines | -11 -10 -10 -9 -9 -9 -8 -8 -8 -8 -8 -6 -6 -6 -6 -6 -6 -6 -5 -5 -5 -5 -5 -5 -4 -4 -4 -4 -4 -4 -4 -3 -3 -3 -3 ---------- Run | Yrd Mat Min Mat Min Exi Min Mat Sto Rec Scr Fac Was Fac Ext Cet Arc Hub Fac Was Fac Upp Upp Zhi Pro Fac Was Fac Upp Upp War Pro Res Qua Frg Machines Disabled 31 | . 1 . 3 . . . 4 2 1 . . . . 5 1 . 2 . . . . . . . 1 . 2 . 1 1 . . 2 5 Max in Single Turn 4 | . 1 . 1 . . . 1 1 1 . . . . 3 . . . . . . . . . . 1 . 1 . 1 1 . . 1 4 Garrison Access 16 | . . . . . . . . 1 . . 3 . 4 . . . . 1 . 2 . . . . 3 . 1 . . . . . 1 . Network Hub 2 | . . . . . . . . . . . . . . . . . 2 . . . . . . . . . . . . . . . . . Energy Cycler 1 | . . . . . . . . . . . . . . 1 . . . . . . . . . . . . . . . . . . . . Machines Repaired . | . . . . . . . . . . . . . . . . . . . . . . . . . . . . . . . . . . . Machines Dismantled . | . . . . . . . . . . . . . . . . . . . . . . . . . . . . . . . . . . . Machines Sabotaged 1 | . . . . . . . . . . . . . . . . . 1 . . . . . . . . . . . . . . . . . Overloaded Fab Kills . | . . . . . . . . . . . . . . . . . . . . . . . . . . . . . . . . . . . Hacking | -11 -10 -10 -9 -9 -9 -8 -8 -8 -8 -8 -6 -6 -6 -6 -6 -6 -6 -5 -5 -5 -5 -5 -5 -4 -4 -4 -4 -4 -4 -4 -3 -3 -3 -3 --------- Run | Yrd Mat Min Mat Min Exi Min Mat Sto Rec Scr Fac Was Fac Ext Cet Arc Hub Fac Was Fac Upp Upp Zhi Pro Fac Was Fac Upp Upp War Pro Res Qua Frg Machines Accessed 225 | . 5 1 11 1 1 . 10 12 11 5 21 . 26 7 1 . 3 18 . 21 1 1 4 . 27 . 16 1 1 6 . 3 5 6 Terminals 113 | . 5 . 8 . . . 9 9 6 . 8 . 10 7 1 . 3 9 . 10 . . . . 12 . 7 . . . . 1 3 5 Fabricators 16 | . . . . . . . . . . . 4 . 4 . . . . 2 . 3 . . . . 2 . 1 . . . . . . . Repair Stations 16 | . . . 1 . . . . 2 . . 1 . 3 . . . . 3 . . . . . . 3 . 2 . . . . . 1 . Recycling Units 36 | . . . . . . . . . 5 . 5 . 5 . . . . 2 . 5 . . . . 7 . 4 . . . . 2 . 1 Scanalyzers 6 | . . . 2 . . . 1 . . . . . . . . . . 1 . 1 . . . . . . 1 . . . . . . . Garrison Access 16 | . . . . . . . . 1 . . 3 . 4 . . . . 1 . 2 . . . . 3 . 1 . . . . . 1 . Total Hacks 689 | . 15 1 42 1 1 . 32 37 28 12 48 . 57 25 2 . 7 91 . 64 1 1 17 . 84 . 57 1 1 14 . 7 12 31 Successful 461 | . 10 1 25 1 1 . 18 16 19 12 35 . 42 16 1 . 6 59 . 39 1 1 17 . 58 . 43 1 1 14 . 4 7 13 Failed 226 | . 4 . 17 . . . 14 21 8 . 13 . 15 9 1 . 1 32 . 25 . . . . 26 . 14 . . . . 3 5 18 Catastrophic 28 | . 1 . 2 . . . 2 3 . . 1 . . 2 . . . 1 . 4 . . . . 2 . 4 . . . . 1 . 5 Database Lockouts 2 | . 1 . . . . . . . 1 . . . . . . . . . . . . . . . . . . . . . . . . . Manual 351 | . 10 . 24 . . . 20 15 19 . 28 . 25 20 1 . 6 40 . 47 . . . . 51 . 26 . . . . 7 3 9 Terminals 430 | . 15 . 28 . . . 22 29 22 . 22 . 28 25 2 . 7 51 . 48 . . . . 50 . 39 . . . . 4 8 30 Fabricators 45 | . . . . . . . . . . . 14 . 10 . . . . 9 . 6 . . . . 5 . 1 . . . . . . . Repair Stations 60 | . . . 4 . . . . 5 . . 2 . 7 . . . . 20 . . . . . . 16 . 3 . . . . . 3 . Recycling Units 42 | . . . . . . . . . 6 . 7 . 5 . . . . 2 . 5 . . . . 9 . 4 . . . . 3 . 1 Scanalyzers 37 | . . . 10 . . . 10 . . . . . . . . . . 7 . 3 . . . . . . 7 . . . . . . . Garrison Access 25 | . . . . . . . . 3 . . 3 . 7 . . . . 2 . 2 . . . . 4 . 3 . . . . . 1 . Terminal Hacks 214 | . 7 1 9 1 1 . 4 9 11 12 6 . 13 11 1 . 1 25 . 17 1 1 17 . 21 . 18 1 1 14 . . 3 8 Record 33 | . . . . . 1 . . . . 10 . . . . . . . . . . . . 5 . 1 . . . 1 12 . . 1 2 Part Schematic 16 | . . . 2 . . . . . 1 . 1 . . 1 . . . 3 . 1 . . 4 . 2 . 1 . . . . . . . Robot Schematic 1 | . . . . . . . . . . . . . 1 . . . . . . . . . . . . . . . . . . . . . Robot Analysis 12 | . 1 . 1 . . . 1 . 2 . . . . . . . . 2 . . . . 4 . . . 1 . . . . . . . Prototype ID Bank 7 | . . . 1 . . . . . 1 . . . . . . . . . . . . . 4 . . . 1 . . . . . . . Open Door 13 | . . 1 . 1 . . . 4 . 1 . . . . 1 . . . . . 1 1 . . . . . 1 . 2 . . . . Level Access Points 2 | . . . . . . . . . . . . . . . . . . 1 . . . . . . . . 1 . . . . . . . Branch Access Points 8 | . . . . . . . 1 . . . . . 1 . . . 1 1 . 1 . . . . 1 . 1 . . . . . . 1 Machine Index 4 | . . . . . . . . . . . 1 . . . . . . . . . . . . . 2 . 1 . . . . . . . Terminal Index 8 | . 1 . 1 . . . 1 . 1 . . . 1 . . . . 1 . 1 . . . . 1 . . . . . . . . . Fabricator Index 3 | . . . . . . . . . . . . . 1 . . . . 1 . . . . . . . . 1 . . . . . . . Recycling Unit Index 2 | . . . . . . . . . . . . . . . . . . . . 1 . . . . . . . . . . . . . 1 Garrison Index 1 | . . . . . . . . . . . . . . . . . . . . 1 . . . . . . . . . . . . . . Alert Level 12 | . . . . . . . . . 2 . 2 . . 2 . . . 3 . 1 . . . . 1 . 1 . . . . . . . Unreport Threat 16 | . 1 . 1 . . . . 1 1 . 1 . 2 4 . . . 2 . . . . . . 3 . . . . . . . . . Locate Traps 26 | . 3 . 2 . . . . 2 1 . . . 3 1 . . . 3 . 1 . . . . 5 . 2 . . . . . 1 2 Disarm Traps 1 | . . . . . . . . . . . . . . 1 . . . . . . . . . . . . . . . . . . . . Dispatch Records 8 | . . . . . . . . . . . . . 1 1 . . . 2 . 3 . . . . . . 1 . . . . . . . Maintenance Status 3 | . . . . . . . . . . . . . 1 . . . . 1 . . . . . . 1 . . . . . . . . . Patrol Status 5 | . . . . . . . . . . . . . . . . . . 2 . . . . . . 1 . 1 . . . . . 1 . Recall Investigation 4 | . . . . . . . . . . . . . 1 . . . . . . 3 . . . . . . . . . . . . . . Recall Extermination 5 | . . . . . . . . . . . . . . . . . . 1 . 2 . . . . 1 . 1 . . . . . . . Recall Reinforcements 2 | . . . . . . . . . . . . . . 1 . . . . . 1 . . . . . . . . . . . . . . Recall Assault 2 | . . . . . . . . . . . . . . . . . . . . 1 . . . . 1 . . . . . . . . . Hauler Manifests 10 | . 1 . 1 . . . 1 1 . . 1 . 1 . . . . 1 . . . . . . 1 . 1 . . . . . . 1 Registered Components 3 | . . . . . . . . 1 . . . . . . . . . 1 . . . . . . . . 1 . . . . . . . Registered Prototypes 3 | . . . . . . . . . . . . . . . . . . . . . . . . . . . 2 . . . . . . 1 Zone Layout 3 | . . . . . . . . . 2 . . . . . . . . . . . . . . . . . 1 . . . . . . . Proto ID Catalog 1 | . . . . . . . . . . 1 . . . . . . . . . . . . . . . . . . . . . . . . Fabricator Hacks 27 | . . . . . . . . . . . 9 . 6 . . . . 4 . 4 . . . . 3 . 1 . . . . . . . Network Status 3 | . . . . . . . . . . . 1 . . . . . . . . 1 . . . . . . 1 . . . . . . . Load Schematic 14 | . . . . . . . . . . . 5 . 4 . . . . 2 . 1 . . . . 2 . . . . . . . . . Build 10 | . . . . . . . . . . . 3 . 2 . . . . 2 . 2 . . . . 1 . . . . . . . . . Repair Station Hacks 49 | . . . 4 . . . . 2 . . 2 . 6 . . . . 15 . . . . . . 15 . 3 . . . . . 2 . Scan Component 25 | . . . 2 . . . . 1 . . 1 . 3 . . . . 8 . . . . . . 8 . 1 . . . . . 1 . Repair 23 | . . . 2 . . . . 1 . . 1 . 3 . . . . 7 . . . . . . 7 . 1 . . . . . 1 . Refit 1 | . . . . . . . . . . . . . . . . . . . . . . . . . . . 1 . . . . . . . Recycling Unit Hacks . | . . . . . . . . . . . . . . . . . . . . . . . . . . . . . . . . . . . Scanalyzer 32 | . . . 10 . . . 9 . . . . . . . . . . 4 . 2 . . . . . . 7 . . . . . . . Insert Component 13 | . . . 4 . . . 3 . . . . . . . . . . 1 . 1 . . . . . . 4 . . . . . . . Analyze 19 | . . . 6 . . . 6 . . . . . . . . . . 3 . 1 . . . . . . 3 . . . . . . . Garrison Access Hacks 16 | . . . . . . . . 1 . . 3 . 4 . . . . 1 . 2 . . . . 3 . 1 . . . . . 1 . Seal Access 16 | . . . . . . . . 1 . . 3 . 4 . . . . 1 . 2 . . . . 3 . 1 . . . . . 1 . Unauthorized Hacks 123 | . 3 . 2 . . . 5 4 8 . 15 . 13 5 . . 5 10 . 14 . . . . 16 . 13 . . . . 4 1 5 Terminals 73 | . 3 . 2 . . . 5 4 3 . 6 . 5 5 . . 5 5 . 7 . . . . 7 . 9 . . . . 2 1 4 Track 1 | . . . . . . . . . . . . . . . . . . . . . . . . . . . 1 . . . . . . . Assimilate 20 | . . . . . . . 2 1 . . 3 . 2 1 . . 1 1 . 3 . . . . 3 . 1 . . . . 1 . 1 Botnet 34 | . 2 . 2 . . . 2 2 2 . 2 . 2 3 . . 1 3 . 3 . . . . 3 . 3 . . . . 1 1 2 Disrupt 1 | . . . . . . . . . . . . . . . . . . . . . . . . . 1 . . . . . . . . . Operators 11 | . 1 . . . . . 1 1 1 . 1 . 1 1 . . . 1 . 1 . . . . . . 1 . . . . . . 1 Skim 3 | . . . . . . . . . . . . . . . . . . . . . . . . . . . 3 . . . . . . . Sabotage 3 | . . . . . . . . . . . . . . . . . 3 . . . . . . . . . . . . . . . . . Fabricators 14 | . . . . . . . . . . . 4 . 3 . . . . 3 . 2 . . . . 2 . . . . . . . . . Prioritize 7 | . . . . . . . . . . . 1 . 1 . . . . 2 . 2 . . . . 1 . . . . . . . . . Haulers 2 | . . . . . . . . . . . 1 . . . . . . 1 . . . . . . . . . . . . . . . . Recompile 5 | . . . . . . . . . . . 2 . 2 . . . . . . . . . . . 1 . . . . . . . . . Repair Stations . | . . . . . . . . . . . . . . . . . . . . . . . . . . . . . . . . . . . Recycling Units 36 | . . . . . . . . . 5 . 5 . 5 . . . . 2 . 5 . . . . 7 . 4 . . . . 2 . 1 Tunnel 5 | . . . . . . . . . 5 . . . . . . . . . . . . . . . . . . . . . . . . . Fedlink 31 | . . . . . . . . . . . 5 . 5 . . . . 2 . 5 . . . . 7 . 4 . . . . 2 . 1 Scanalyzers . | . . . . . . . . . . . . . . . . . . . . . . . . . . . . . . . . . . . Garrison Access . | . . . . . . . . . . . . . . . . . . . . . . . . . . . . . . . . . . . Data Cores Recovered 1 | . . . . . . . 1 . . . . . . . . . . . . . . . . . . . . . . . . . . . Used . | . . . . . . . . . . . . . . . . . . . . . . . . . . . . . . . . . . . Hacking Detections 113 | . 3 . 11 . . . 9 11 5 . 11 . 12 6 . . 1 14 . 8 . . . . 11 . 5 . . . . 1 2 3 Full Trace Events 21 | . 1 . 7 . . . 3 1 . . 3 . 2 1 . . . 1 . 2 . . . . . . . . . . . . . . Feedback Events 2 | . . . . . . . 2 . . . . . . . . . . . . . . . . . . . . . . . . . . . Corruption 2 | . . . . . . . 2 . . . . . . . . . . . . . . . . . . . . . . . . . . . Feedback Blocked . | . . . . . . . . . . . . . . . . . . . . . . . . . . . . . . . . . . . Robot Schematics Acquired 1 | . . . . . . . . . . . . . 1 . . . . . . . . . . . . . . . . . . . . . Robots Built . | . . . . . . . . . . . . . . . . . . . . . . . . . . . . . . . . . . . Authchips . | . . . . . . . . . . . . . . . . . . . . . . . . . . . . . . . . . . . Time . | . . . . . . . . . . . . . . . . . . . . . . . . . . . . . . . . . . . Total Robot Build Rating . | . . . . . . . . . . . . . . . . . . . . . . . . . . . . . . . . . . . Part Schematics Acquired 40 | . . . 6 . . . 3 . 1 10 1 . . 1 . . . 4 . 2 . . 4 . 2 . 4 . . . . . . 2 Parts Built 12 | . . . . . . . . . . . 3 . 2 . . . . 2 . 3 . . . . 2 . . . . . . . . . Authchips 5 | . . . . . . . . . . . 2 . 1 . . . . 1 . . . . . . 1 . . . . . . . . . Time 483 | . . . . . . . . . . . 99 . 111 . . . . 72 . 137 . . . . 64 . . . . . . . . . Total Part Build Rating 66 | . . . . . . . . . . . 12 . 8 . . . . 12 . 18 . . . . 16 . . . . . . . . . Parts Repaired 23 | . . . 2 . . . . 1 . . 1 . 3 . . . . 7 . . . . . . 7 . 1 . . . . . 1 . Time 883 | . . . 134 . . . . 51 . . 20 . 67 . . . . 217 . . . . . . 296 . 54 . . . . . 44 . Parts Recycled . | . . . . . . . . . . . . . . . . . . . . . . . . . . . . . . . . . . . Recycled Matter . | . . . . . . . . . . . . . . . . . . . . . . . . . . . . . . . . . . . Retrieved Matter . | . . . . . . . . . . . . . . . . . . . . . . . . . . . . . . . . . . . Retrieved Components . | . . . . . . . . . . . . . . . . . . . . . . . . . . . . . . . . . . . Parts Scanalyzed 12 | . . . 4 . . . 3 . . . . . . . . . . 1 . 1 . . . . . . 3 . . . . . . . Part Schematics Acquired 12 | . . . 4 . . . 3 . . . . . . . . . . 1 . 1 . . . . . . 3 . . . . . . . Parts Damaged 1 | . . . . . . . . . . . . . . . . . . . . . . . . . . . 1 . . . . . . . Bothacking | -11 -10 -10 -9 -9 -9 -8 -8 -8 -8 -8 -6 -6 -6 -6 -6 -6 -6 -5 -5 -5 -5 -5 -5 -4 -4 -4 -4 -4 -4 -4 -3 -3 -3 -3 ------------ Run | Yrd Mat Min Mat Min Exi Min Mat Sto Rec Scr Fac Was Fac Ext Cet Arc Hub Fac Was Fac Upp Upp Zhi Pro Fac Was Fac Upp Upp War Pro Res Qua Frg Used RIF Installer . | . . . . . . . . . . . . . . . . . . . . . . . . . . . . . . . . . . . Robots Hacked 5 | . . . . . 4 . . . . . . . . . . . . . . . . . . . 1 . . . . . . . . . Non-combat 4 | . . . . . 3 . . . . . . . . . . . . . . . . . . . 1 . . . . . . . . . Combat 1 | . . . . . 1 . . . . . . . . . . . . . . . . . . . . . . . . . . . . . Robot Hacks Applied 5 | . . . . . 4 . . . . . . . . . . . . . . . . . . . 1 . . . . . . . . . parse_system 4 | . . . . . 4 . . . . . . . . . . . . . . . . . . . . . . . . . . . . . find_chute 1 | . . . . . . . . . . . . . . . . . . . . . . . . . 1 . . . . . . . . . Relay Couplers Released 3 | . . . . . . . . . . . 3 . . . . . . . . . . . . . . . . . . . . . . . Programmers 3 | . . . . . . . . . . . 3 . . . . . . . . . . . . . . . . . . . . . . . Fabnet Peak Effective % . | . . . . . . . . . . . . . . . . . . . . . . . . . . . . . . . . . . . Robots Rewired 12 | . . . . . . . . 2 . . 1 . . 9 . . . . . . . . . . . . . . . . . . . . Allies Hacked . | . . . . . . . . . . . . . . . . . . . . . . . . . . . . . . . . . . . Hacks Repelled . | . . . . . . . . . . . . . . . . . . . . . . . . . . . . . . . . . . . Allies | -11 -10 -10 -9 -9 -9 -8 -8 -8 -8 -8 -6 -6 -6 -6 -6 -6 -6 -5 -5 -5 -5 -5 -5 -4 -4 -4 -4 -4 -4 -4 -3 -3 -3 -3 -------- Run | Yrd Mat Min Mat Min Exi Min Mat Sto Rec Scr Fac Was Fac Ext Cet Arc Hub Fac Was Fac Upp Upp Zhi Pro Fac Was Fac Upp Upp War Pro Res Qua Frg Total Allies 49 | . . 3 . . . . 2 11 . . 3 1 2 12 5 . . 1 1 2 . . . . 3 . 1 . . . . 1 . 1 Largest Group 12 | . . 3 3 . . . 2 11 11 11 9 1 1 11 12 10 9 1 1 1 . . . . 2 . 1 . . . . 1 . 1 Highest-Rated Group 822 | . . 40 40 . . . 36 183 183 183 177 31 26 438 822 753 594 26 31 26 . . . . 36 . 26 . . . . 10 . 45 Highest-Rated Ally 159 | . . 16 16 . . . 26 29 29 29 32 31 26 159 159 159 96 26 31 26 . . . . 26 . 26 . . . . 10 . 45 Total Orders 10 | . . 2 . . . . . . . 2 3 . . . . . . . . 2 . . . . 1 . . . . . . . . . STAY 5 | . . 1 . . . . . . . 1 1 . . . . . . . . 1 . . . . 1 . . . . . . . . . FOLLOW 5 | . . 1 . . . . . . . 1 2 . . . . . . . . 1 . . . . . . . . . . . . . . Ally Attacks 333 | . . . 29 . . . . . 15 . 38 . . 107 63 17 59 . 5 . . . . . . . . . . . . . . . Total Damage 7771 | . . . 327 . . . . . 174 . 632 . . 2406 1570 608 1992 . 62 . . . . . . . . . . . . . . . Kills 58 | . . . 4 . . . . . 3 . 4 . . 18 12 4 13 . . . . . . . . . . . . . . . . . Allies Corrupted . | . . . . . . . . . . . . . . . . . . . . . . . . . . . . . . . . . . . Allies Melted 3 | . . . 1 . . . . . . . 1 . . . . . . . . . . . . . . . . . . . . . . 1 Intel | -11 -10 -10 -9 -9 -9 -8 -8 -8 -8 -8 -6 -6 -6 -6 -6 -6 -6 -5 -5 -5 -5 -5 -5 -4 -4 -4 -4 -4 -4 -4 -3 -3 -3 -3 ------- Run | Yrd Mat Min Mat Min Exi Min Mat Sto Rec Scr Fac Was Fac Ext Cet Arc Hub Fac Was Fac Upp Upp Zhi Pro Fac Was Fac Upp Upp War Pro Res Qua Frg Active Infowar (turns) 25661 | 13 1006 632 2240 1375 424 471 2280 1363 826 4174 1013 13 959 933 362 310 91 905 20 978 155 192 43 117 1703 75 805 182 71 596 117 333 195 689 Optics 1032 | . . . . . . . 616 416 . . . . . . . . . . . . . . . . . . . . . . . . . . Sensors 9939 | . . 5 . . . . . 2 . 458 1013 13 959 169 362 284 88 892 20 978 155 192 43 117 1642 75 751 182 71 596 117 333 195 227 Terrain 520 | . . . . . . . 152 368 . . . . . . . . . . . . . . . . . . . . . . . . . . Structural 21011 | . . . 1507 1319 424 471 2279 1363 826 4103 971 13 868 933 362 99 3 728 20 956 155 192 4 117 942 75 669 182 71 282 115 333 165 464 Seismic 13019 | 13 1006 627 2240 1367 424 471 2280 943 826 2822 . . . . . . . . . . . . . . . . . . . . . . . . Machine Analysis 10848 | . . . . . . . . . . . 1004 13 959 933 362 310 91 905 20 978 155 192 43 117 1703 75 805 182 71 596 117 333 195 689 ECM 378 | . . . . . . . . . . . . . . . . . . . . 1 . . . . 284 . . . . . . . 86 7 Robot Analysis Total 12 | . 1 . 1 . . . 1 . 2 . . . . . . . . 2 . . . . 4 . . . 1 . . . . . . . Derelict Logs Recovered 9 | . . 1 . 1 . . . . . . . . . . . . . . . . 2 1 . 2 . . . 2 . . . . . . Drone Launches . | . . . . . . . . . . . . . . . . . . . . . . . . . . . . . . . . . . . Drone Recoveries . | . . . . . . . . . . . . . . . . . . . . . . . . . . . . . . . . . . . Exploration | -11 -10 -10 -9 -9 -9 -8 -8 -8 -8 -8 -6 -6 -6 -6 -6 -6 -6 -5 -5 -5 -5 -5 -5 -4 -4 -4 -4 -4 -4 -4 -3 -3 -3 -3 ------------- Run | Yrd Mat Min Mat Min Exi Min Mat Sto Rec Scr Fac Was Fac Ext Cet Arc Hub Fac Was Fac Upp Upp Zhi Pro Fac Was Fac Upp Upp War Pro Res Qua Frg Turns Passed 26377 | 85 1626 638 2242 1389 424 471 2280 1363 826 4176 1013 13 959 933 362 310 91 905 20 978 155 192 43 117 1703 75 805 182 71 596 117 333 195 689 Spaces Moved 26253 | 26 674 303 903 429 237 211 839 489 405 2185 1789 63 1994 902 174 237 150 1537 72 2140 569 611 136 367 2889 244 1541 493 211 970 347 598 338 1180 Core 17 | . . . . . . . . . . . . . . . . . . 8 . . . . . . . . . . . . . . . 9 Treads 922 | 20 674 100 2 . . . 26 . . 100 . . . . . . . . . . . . . . . . . . . . . . . . Legs 6 | 6 . . . . . . . . . . . . . . . . . . . . . . . . . . . . . . . . . . Wheels 5773 | . . 203 901 429 237 211 813 489 405 2085 . . . . . . . . . . . . . . . . . . . . . . . . Hover . | . . . . . . . . . . . . . . . . . . . . . . . . . . . . . . . . . . . Flight 19535 | . . . . . . . . . . . 1789 63 1994 902 174 237 150 1529 72 2140 569 611 136 367 2889 244 1541 493 211 970 347 598 338 1171 Fastest Speed 10 | 120 160 130 175 175 175 175 175 175 190 105 26 17 14 26 26 26 26 17 27 27 27 27 27 27 11 24 28 28 28 28 28 15 25 10 Average Speed 66 | 150 207 189 178 175 175 178 194 188 190 174 28 19 25 26 26 39 26 28 27 27 27 27 27 27 24 27 28 28 28 28 28 24 25 22 Slowest Speed 480 | 160 240 240 480 175 175 190 480 190 190 400 29 26 26 26 26 91 26 300 27 27 27 27 27 27 28 28 28 28 28 108 28 25 25 250 Overloaded Moves 102 | . . . . . . . . . . . . 43 8 . . . . 8 . . . . . . 11 . . . . . . 5 . 27 Propulsion Burnouts . | . . . . . . . . . . . . . . . . . . . . . . . . . . . . . . . . . . . Robots Hopped 54 | . . . . . . . . . . . 7 . 9 . . . 1 7 . 4 1 2 . . 8 . 5 1 . 4 . 1 . 4 Potential Cave-ins 5 | . . . . . . . . . . . . . . . . . . 5 . . . . . . . . . . . . . . . . Cave-ins Triggered . | . . . . . . . . . . . . . . . . . . . . . . . . . . . . . . . . . . . Exploration Rate (%) 62 | 3 88 69 81 80 64 43 63 78 96 91 47 68 55 78 70 89 20 40 71 55 73 74 60 56 59 92 46 72 44 89 65 22 49 47 Regions Visited 34 Branch Regions 21 Pre-discovered Areas 14 | . . . . . 1 . . 1 5 2 1 . . . . . . . . . . 1 3 . . . . . . . . . . . Known Exits Taken 19 | . . . . . . . 1 . . 1 . . 1 1 1 1 1 . . 1 1 1 1 1 . . 1 1 1 1 1 1 1 . Unknown Exits Taken 9 | 1 1 1 1 1 1 1 . 1 1 . . . . . . . . . . . . . . . . . . . . . . . . . Scrap Searched 14 | . . 1 . . . 1 . . . 5 . . . . . . . . . . 1 1 . 2 . . . 2 . . 1 . . . Spaces Dug 357 | . . . . 1 . 9 1 1 . . 29 . 43 1 . . 11 43 . 42 . . . . 66 . 48 10 4 4 5 16 7 16 Terrain Destroyed 943 | . . . . 1 . 29 8 1 . . 29 . 43 196 . . 11 43 . 103 . 56 . 13 160 . 72 10 4 19 5 76 7 57 Melee 182 | . . . . 1 . . 1 1 . . 29 . 41 1 . . 8 23 . 15 . . . . 37 . 15 . . 4 . 4 . 2 Projectile 171 | . . . . . . 2 . . . . . . 2 . . . 3 20 . 27 . . . . 29 . 34 10 4 . 5 14 7 14 AOE 590 | . . . . . . 27 7 . . . . . . 195 . . . . . 61 . 56 . 13 94 . 23 . . 15 . 58 . 41 Terrain Rammed . | . . . . . . . . . . . . . . . . . . . . . . . . . . . . . . . . . . . Walls Destroyed . | . . . . . . . . . . . . . . . . . . . . . . . . . . . . . . . . . . . Machines Disabled . | . . . . . . . . . . . . . . . . . . . . . . . . . . . . . . . . . . . Actions | -11 -10 -10 -9 -9 -9 -8 -8 -8 -8 -8 -6 -6 -6 -6 -6 -6 -6 -5 -5 -5 -5 -5 -5 -4 -4 -4 -4 -4 -4 -4 -3 -3 -3 -3 --------- Run | Yrd Mat Min Mat Min Exi Min Mat Sto Rec Scr Fac Was Fac Ext Cet Arc Hub Fac Was Fac Upp Upp Zhi Pro Fac Was Fac Upp Upp War Pro Res Qua Frg Total 33065 | 55 784 350 1303 999 245 255 1197 773 458 2562 2194 62 2314 1545 491 443 179 1896 71 2435 568 621 141 382 3662 252 1795 525 217 1261 360 723 432 1515 Wait 4570 | 9 7 12 161 515 . . 81 76 43 332 262 . 194 514 314 196 10 264 . 191 . . . 15 543 . 157 23 . 261 7 73 72 238 Move 26123 | 25 673 302 902 428 236 210 838 488 404 2184 1776 62 1977 901 173 236 147 1523 71 2131 566 607 135 366 2874 243 1530 490 210 963 346 595 337 1174 Hop 45 | . . . . . . . . . . . 6 . 7 . . . 1 7 . 4 1 1 . . 7 . 5 1 . 2 . 1 . 2 Pick Up 133 | 4 22 8 18 2 1 5 23 6 1 5 7 . 5 . . . . 3 . 4 . . 1 . 7 3 3 1 1 . . 2 . 1 Fast Attach 142 | 1 2 4 11 5 . 3 14 16 3 7 10 . 7 3 . 3 . 11 . 2 . . 2 . 10 . 2 . . 4 . . 4 18 Attach 86 | 2 4 2 8 3 1 4 17 3 1 5 12 . 3 . . . 1 3 . 1 . . . . 7 3 1 . . . . 2 . 3 Detach 54 | . . 1 7 . 1 . 6 4 . 7 5 . 4 . . 1 1 2 . 2 . . . . 7 1 . . . 1 . . . 4 Swap 201 | 1 2 6 22 4 1 4 25 21 . 5 4 . 6 13 2 1 6 3 . 9 1 2 1 . 33 . 11 . . 5 2 4 2 5 Drop 179 | 4 5 5 23 7 1 2 26 21 3 16 15 . 7 4 2 1 . 6 . 4 . 1 2 . 4 2 2 . 1 5 . . 3 7 Fire 817 | 9 69 8 116 33 . 27 161 106 3 . . . 2 7 . . 3 20 . 33 . 5 . 1 38 . 38 10 5 16 5 36 14 52 Melee 471 | . . . 1 2 4 . 6 3 . . 59 . 74 21 . 5 10 54 . 42 . 5 . . 114 . 46 . . 4 . 10 . 11 Ram . | . . . . . . . . . . . . . . . . . . . . . . . . . . . . . . . . . . . Kick . | . . . . . . . . . . . . . . . . . . . . . . . . . . . . . . . . . . . Crush 2 | . . 2 . . . . . . . . . . . . . . . . . . . . . . . . . . . . . . . . Escape Stasis 112 | . . . . . . . . . . . 18 . 28 36 . . . . . 12 . . . . 18 . . . . . . . . . Rewire 95 | . . . . . . . . 29 . . 20 . . 46 . . . . . . . . . . . . . . . . . . . . Trap 35 | . . . 34 . . . . . . 1 . . . . . . . . . . . . . . . . . . . . . . . . Miscellaneous . | . . . . . . . . . . . . . . . . . . . . . . . . . . . . . . . . . . . Route ------- -11/Scrapyard -10/Materials (discovered 4 exits: *Mat x2 / *Min x2) -10/Mines (discovered 2 exits: *Mat x2) -9/Materials (discovered 4 exits: *Mat x2 / *Min x2) -9/Mines (discovered 2 exits: *Mat / *Exi) -9/Exiles -8/Mines -8/Materials (discovered 3 exits: [*Fac] / *Sto x2) -8/Storage (discovered 2 exits: [*Fac] / *Rec) -8/Recycling (discovered 2 exits: *Fac / *Scr) -8/Scraptown (discovered 2 exits: *Fac x2) -6/Factory (discovered 2 exits: *Fac / *Low) -6/Waste -6/Factory (discovered 5 exits: *Fac / *Low x2 / *Ext x2) -6/Extension (discovered 3 exits: *Fac x2 / *Cet) -6/Cetus (discovered 2 exits: *Fac / *Arc) -6/Archives (discovered 3 exits: *Fac / *Hub x2) -6/Hub_04(d) -5/Factory (discovered 6 exits: *Fac x4 / *Upp x2) -5/Waste -5/Factory (discovered 4 exits: *Fac x2 / *Upp x2) -5/Upper Caves -5/Upper Caves (discovered 2 exits: *Fac / *Zhi) -5/Zhirov -4/Proximity Caves -4/Factory (discovered 4 exits: *Res x2 / *Upp x2) -4/Waste -4/Factory (discovered 6 exits: *Res x4 / *Upp x2) -4/Upper Caves -4/Upper Caves (discovered 2 exits: Res / *War) -4/Warlord -3/Proximity Caves -3/Research (discovered 4 exits: *Res x2 / *Qua x2) -3/Quarantine (discovered 3 exits: Res / [*Sec] / *Frg) -3/Protoforge History --------- Turn | Location | Event 15 | -11/Scrapyard | Discovered new exit (range 2) 86 | -11/Scrapyard | Entered Materials 87 | -10/Materials | Met a group of wandering Federalists 238 | -10/Materials | Discovered new exit (range 14) 303 | -10/Materials | Build established: Mutant 401 | -10/Materials | Discovered new exit (range 8) 521 | -10/Materials | Central database locked down 610 | -10/Materials | Discovered new exit (range 5) 787 | -10/Materials | Discovered new exit (range 16) 1712 | -10/Materials | Entered Mines 1743 | -10/Mines | Received a Rocket Launcher from a helpful Derelict 1842 | -10/Mines | Discovered new exit (range 11) 1863 | -10/Mines | Assisted by bots powering up and referring to "LRC-V3" 1922 | -10/Mines | Met a Derelict who couldn't figure out how to use a Trap Extractor 2082 | -10/Mines | Found a damaged Exp. Sensor Array with a note attached 2086 | -10/Mines | Found Prototype Device 2086 | -10/Mines | Identified Exp. Sensor Array 2172 | -10/Mines | Learned Materials non-interactive machine intel 2270 | -10/Mines | Discovered new exit (range 6) 2350 | -10/Mines | System corruption reached 10% 2350 | -10/Mines | Entered Materials 2350 | -9/Materials | Accompanied by 3 allies 2350 | -9/Materials | Evolved 2 slots: Utility x2 2351 | -9/Materials | Loaded intel: 42 non-interactive machine locations 2823 | -9/Materials | Build established: Scavenger-Mutant 3026 | -9/Materials | Discovered new exit (range 5) 3437 | -9/Materials | Repaired Assault Rifle 3546 | -9/Materials | Repaired Exp. Sensor Array? 3649 | -9/Materials | Discovered new exit (range 15) 3696 | -9/Materials | Build established: Mutant 3707 | -9/Materials | Discovered new exit (range 16) 4209 | -9/Materials | Build established: Scavenger-Mutant 4312 | -9/Materials | Discovered new exit (range 12) 4339 | -9/Materials | Core integrity fell below 50% 4592 | -9/Materials | Entered Mines 4596 | -9/Mines | Discovered new exit (range 9) 4654 | -9/Mines | Met a Derelict bent on vengeance 4696 | -9/Mines | Assembled infested the area 4701 | -9/Mines | Assisted by a Guerilla fighting off Assembled 5463 | -9/Mines | Learned location of 1 exit from Lower Caves 5579 | -9/Mines | Found the Drone Emporium 5590 | -9/Mines | Found Prototype Device 5590 | -9/Mines | Identified Decoy Drone Bay 5974 | -9/Mines | Deemed a non-threat by the Exiles lab entrance 5974 | -9/Mines | Discovered new exit (range 5) 5981 | -9/Mines | Entered Exiles 6027 | -9/Exiles | Met 8R-AWN 6060 | -9/Exiles | Met EX-HEX 6116 | -9/Exiles | Met EX-BIN 6168 | -9/Exiles | Met EX-DEC 6307 | -9/Exiles | Learned location of Zion (-6) 6386 | -9/Exiles | Discovered new exit (range 12) 6405 | -9/Exiles | Entered Mines 6777 | -8/Mines | Lost 4 parts (1p2n1u) 6817 | -8/Mines | Discovered new exit (range 13) 6876 | -8/Mines | Entered Materials 6876 | -8/Materials | Evolved 2 slots: Utility x2 7578 | -8/Materials | Discovered new exit (range 10) 7737 | -8/Materials | Lost 3 parts (1u2w) 7891 | -8/Materials | Discovered new exit (range 4) 8866 | -8/Materials | Identified exit to Storage 9156 | -8/Materials | Entered Storage 9156 | -8/Storage | Accompanied by 2 allies 9672 | -8/Storage | Repaired Imp. Flight Unit 10029 | -8/Storage | Learned location of Armory (-3) 10038 | -8/Storage | Discovered new exit (range 13) 10112 | -8/Storage | Garrison activated, responded to threat 10121 | -8/Storage | Core integrity fell below 50% 10336 | -8/Storage | Used back door to open Recycling access 10336 | -8/Storage | Discovered new exit (range 5) 10423 | -8/Storage | Assisted by bots powering up and referring to "LRC-V3" 10519 | -8/Storage | Entered Recycling 10519 | -8/Recycling | Accompanied by 11 allies 10713 | -8/Recycling | Build established: Commander-Mutant 11133 | -8/Recycling | Discovered new exit (range 15) 11252 | -8/Recycling | Scanned before Scraplab entrance 11275 | -8/Recycling | Discovered new exit (range 11) 11281 | -8/Recycling | Entered Scraplab 11345 | -8/Recycling | Entered Scraptown 11345 | -8/Scraptown | Accompanied by 11 allies 11345 | -8/Scraptown | System corruption cleaned by C-Scrubber 11578 | -8/Scraptown | Heard Great Nut preacher, LISTEN AND RECITE! 11842 | -8/Scraptown | Discovered new exit (range 11) 11984 | -8/Scraptown | Visited Red Mages 12003 | -8/Scraptown | Visited Spacefarers 12058 | -8/Scraptown | Visited Cyclists 12131 | -8/Scraptown | Visited Science Testing Area 12267 | -8/Scraptown | Visited UFD Registry 12294 | -8/Scraptown | Registered with UFD as "Shadowripper" 12319 | -8/Scraptown | Visited Shadow of the Wyrm 12347 | -8/Scraptown | Visited Comm Corps 12596 | -8/Scraptown | Visited Botcube Research 12642 | -8/Scraptown | Visited Scrapoid Pod Storage 12672 | -8/Scraptown | Visited Chapter 10 12893 | -8/Scraptown | Visited A0-MCA Data Center 12934 | -8/Scraptown | Visited Derelict Rescue Squad 12982 | -8/Scraptown | Visited DA-N13 Charitable Foundation 12989 | -8/Scraptown | Found DCF Scrap (30 items) 13036 | -8/Scraptown | Visited Sword Containment 13209 | -8/Scraptown | Visited Junk Repository 13264 | -8/Scraptown | Visited Science Guys 13540 | -8/Scraptown | Given a B+ rating by A0-MCA 13544 | -8/Scraptown | Found A0-MCA's Component Scanner 13872 | -8/Scraptown | Warned about trapping Scraptown 14120 | -8/Scraptown | Found Thermal Lance 14134 | -8/Scraptown | Lost 5 allies 14461 | -8/Scraptown | Entered Cyclist Reading Room 14576 | -8/Scraptown | Visited SPCMW 14635 | -8/Scraptown | Tech Extrapolator generated special schematic: Machine Rigger 14839 | -8/Scraptown | Tech Extrapolator generated special schematic: Deep Structural Scanner 15425 | -8/Scraptown | Build established: Commander-Assassin 15431 | -8/Scraptown | Met Optimus 15431 | -8/Scraptown | Accepted into 0bPrime 15485 | -8/Scraptown | Discovered new exit (range 3) 15486 | -8/Scraptown | Identified exit to Factory 15521 | -8/Scraptown | Entered Factory 15521 | -6/Factory | Accompanied by 8 allies 15521 | -6/Factory | Evolved 4 slots: Propulsion x2, Utility x2 15558 | -6/Factory | Loaded intel: 8 recycling unit locations 15876 | -6/Factory | Discovered new exit (range 9) 15878 | -6/Factory | Lost 5 allies 15946 | -6/Factory | Learned location of Protoforge (-3) 16005 | -6/Factory | Repaired Imp. VTOL Module 16169 | -6/Factory | Discovered new exit (range 9) 16171 | -6/Factory | Identified exit to Factory 16291 | -6/Factory | Build established: Hacker-Scout 16454 | -6/Factory | Fabricated Cld. VTOL Module? 16494 | -6/Factory | Fabricated Cld. VTOL Module (x1) 16528 | -6/Factory | Fabricated Cld. VTOL Module (x1) 16534 | -6/Factory | Sucked down chute 16534 | -6/Factory | Entered Waste 16535 | -6/Waste | Met a frightened Derelict 16542 | -6/Waste | Spotted C-40 Crusher 16544 | -6/Waste | Spotted C-40 Crusher 16544 | -6/Waste | Discovered new exit (range 15) 16544 | -6/Waste | Spotted C-40 Crusher 16544 | -6/Waste | Spotted C-40 Crusher 16545 | -6/Waste | Spotted C-40 Crusher 16546 | -6/Waste | Identified exit to Factory 16547 | -6/Waste | Entered Factory 16608 | -6/Factory | Spotted B-75 Beast 16735 | -6/Factory | Loaded intel: 8 recycling unit locations 16799 | -6/Factory | Identified exit to Lower Caves 16799 | -6/Factory | Identified exit to Extension 16817 | -6/Factory | Repaired Lgt. Nuclear Core 16909 | -6/Factory | Fabricated Cld. VTOL Module? 17037 | -6/Factory | Found Scatter Rocket Array 17044 | -6/Factory | Discovered exit to Factory (range 14) 17161 | -6/Factory | Repaired Enh. Autogun? 17327 | -6/Factory | Fabricated Cld. VTOL Module? 17373 | -6/Factory | Repaired Lgt. Fission Core 17506 | -6/Factory | Entered Extension 17591 | -6/Extension | Energy Cycler disabled 17591 | -6/Extension | Rescued a captive Derelict 17591 | -6/Extension | Rescued a captive Derelict 17591 | -6/Extension | Rescued a captive Derelict 17592 | -6/Extension | Rescued a captive Derelict 17593 | -6/Extension | Rescued a captive Derelict 17593 | -6/Extension | Rescued a captive Derelict 17595 | -6/Extension | Rescued a captive Derelict 17598 | -6/Extension | Rescued a captive Derelict 17599 | -6/Extension | Rescued a captive Derelict 17608 | -6/Extension | Rescued a captive Derelict 17623 | -6/Extension | Rescued A7 18101 | -6/Extension | Build established: Commander-Sprinter 18165 | -6/Extension | Spotted B-75 Beast 18181 | -6/Extension | Discovered exit to Factory (range 15) 18181 | -6/Extension | Spotted B-75 Beast 18183 | -6/Extension | Allies destroyed B-75 Beast 18191 | -6/Extension | Destroyed B-75 Beast 18206 | -6/Extension | Disrupted transfer network 18416 | -6/Extension | Discovered exit to Factory (range 10) 18416 | -6/Extension | Discovered new exit (range 6) 18418 | -6/Extension | Identified exit to Cetus 18439 | -6/Extension | Entered Cetus 18439 | -6/Cetus | Accompanied by 9 allies (A7) 18444 | -6/Cetus | Acquired a Cetus Manufacturing Module code from A7 18465 | -6/Cetus | Spotted Cetus Guard 18465 | -6/Cetus | Spotted Cetus Guard 18475 | -6/Cetus | Spotted Cetus Guard 18482 | -6/Cetus | Allies destroyed Cetus Guard 18482 | -6/Cetus | Allies destroyed Cetus Guard 18518 | -6/Cetus | Escorted A7 to Cetus Mainframe 18531 | -6/Cetus | Started Cetus Manufacturing Module 18556 | -6/Cetus | Manufactured an Enhanced Grunt 18581 | -6/Cetus | Manufactured an Enhanced Grunt 18603 | -6/Cetus | Discovered new exit (range 16) 18606 | -6/Cetus | Manufactured an Enhanced Grunt 18631 | -6/Cetus | Manufactured an Enhanced Grunt 18656 | -6/Cetus | Manufactured an Enhanced Grunt 18664 | -6/Cetus | Build established: Commander-Scout 18692 | -6/Cetus | Spotted Cetus Guard 18712 | -6/Cetus | Spotted Cetus Guard 18716 | -6/Cetus | Allies destroyed Cetus Guard 18726 | -6/Cetus | Discovered exit to Factory (range 16) 18729 | -6/Cetus | Met Revision 17 18774 | -6/Cetus | Identified exit to Archives 18801 | -6/Cetus | Entered Archives 18801 | -6/Archives | Accompanied by 10 allies (A7) 18806 | -6/Archives | Received a hacking code to weaken MAIN.C 18925 | -6/Archives | Discovered new exit (range 16) 18927 | -6/Archives | Discovered new exit (range 16) 18964 | -6/Archives | Discovered exit to Factory (range 15) 19034 | -6/Archives | Identified exit to Hub_04(d) 19111 | -6/Archives | Entered Hub_04(d) 19111 | -6/Hub_04(d) | Accompanied by 9 allies 19188 | -6/Hub_04(d) | Network Hub disabled 19188 | -6/Hub_04(d) | Network Hub disabled 19189 | -6/Hub_04(d) | Discovered exit to Factory (range 7) 19202 | -6/Hub_04(d) | Entered Factory 19202 | -5/Factory | Evolved 2 slots: Propulsion x1, Utility x1 19227 | -5/Factory | Lost 3 allies 19266 | -5/Factory | Identified exit to Upper Caves 19266 | -5/Factory | Identified exit to Factory 19314 | -5/Factory | Repaired Cld. VTOL Module 19514 | -5/Factory | Repaired Cld. VTOL Module 19539 | -5/Factory | Repaired Power Sword 19575 | -5/Factory | Repaired Cld. VTOL Module 19703 | -5/Factory | Fabricated Exp. Sensor Array? 19721 | -5/Factory | Build established: Hacker-Scout 19849 | -5/Factory | Fabricated Deep Structural Scanner? 19874 | -5/Factory | Loaded intel: 8 recycling unit locations 20011 | -5/Factory | Repaired Cld. Plasma Cannon 20048 | -5/Factory | Repaired Lgt. Fission Core 20077 | -5/Factory | Repaired Lyr. Light Armor Plating 20107 | -5/Factory | Manually triggered Chute Trap 20107 | -5/Factory | Sucked down chute 20107 | -5/Factory | Entered Waste 20108 | -5/Waste | Met a frightened Derelict 20111 | -5/Waste | Spotted C-40 Crusher 20111 | -5/Waste | Spotted C-40 Crusher 20112 | -5/Waste | Spotted C-40 Crusher 20117 | -5/Waste | Spotted C-40 Crusher 20118 | -5/Waste | Spotted C-40 Crusher 20122 | -5/Waste | Spotted C-40 Crusher 20124 | -5/Waste | Discovered new exit (range 10) 20126 | -5/Waste | Identified exit to Factory 20127 | -5/Waste | Entered Factory 20324 | -5/Factory | Fabricated Imp. Corruption Screen? 20481 | -5/Factory | Fabricated Mni. Smartbomb Launcher (x1) 20490 | -5/Factory | Discovered exit to Factory (range 13) 20783 | -5/Factory | Loaded intel: 8 recycling unit locations 20865 | -5/Factory | Discovered exit to Factory (range 7) 21027 | -5/Factory | First assault squad dispatched 21105 | -5/Factory | Entered Upper Caves 21132 | -5/Upper Caves | Learned Factory interactive machine intel 21228 | -5/Upper Caves | Discovered new exit (range 14) 21259 | -5/Upper Caves | Identified exit to Upper Caves 21260 | -5/Upper Caves | Entered another Upper Caves area 21265 | -5/Upper Caves | Encountered a Warlord checkpoint 21282 | -5/Upper Caves | Discovered exit to Factory (range 17) 21420 | -5/Upper Caves | Discovered new exit (range 7) 21425 | -5/Upper Caves | Identified exit to Zhirov 21452 | -5/Upper Caves | Entered Zhirov 21452 | -5/Zhirov | Discovered new exit (range 3) 21458 | -5/Zhirov | Met Zhirov 21464 | -5/Zhirov | Learned location of Quarantine (-3) 21466 | -5/Zhirov | Zhirov requested help retrieving the SGEMP Prototype 21473 | -5/Zhirov | Found Alien Artifact 21473 | -5/Zhirov | Identified Integrated Dissipator 21473 | -5/Zhirov | Installed Integrated Dissipator, increased core heat dissipation (+20) 21483 | -5/Zhirov | Found Alien Artifact 21495 | -5/Zhirov | Identified exit to Proximity Caves 21495 | -5/Zhirov | Entered Proximity Caves 21547 | -4/Proximity Caves | Learned location of 1 exit from Research 21609 | -4/Proximity Caves | Build established: Machinist-Scout 21612 | -4/Proximity Caves | Entered Factory 21612 | -4/Factory | Evolved 2 slots: Power x1, Propulsion x1 21613 | -4/Factory | Loaded intel: 54 interactive machine locations 21662 | -4/Factory | Loaded intel: 8 recycling unit locations 21743 | -4/Factory | Identified exit to Upper Caves 21936 | -4/Factory | Discovered new exit (range 16) 21949 | -4/Factory | Spotted B-86 Titan 22074 | -4/Factory | Discovered new exit (range 10) 22221 | -4/Factory | Found Exp. Signal Interpreter 22351 | -4/Factory | Repaired Exp. Sensor Array 22380 | -4/Factory | Repaired Nuclear Pulse Array 22404 | -4/Factory | Repaired Lyr. Light Armor Plating 22594 | -4/Factory | Fabricated Mic. Antimatter Reactor (x2) 22731 | -4/Factory | Repaired Cld. VTOL Module 22775 | -4/Factory | Repaired Broken Adv. Reaction Control System 23112 | -4/Factory | First assault squad dispatched 23219 | -4/Factory | Repaired Cld. VTOL Module? 23268 | -4/Factory | Repaired Lyr. Light Armor Plating 23315 | -4/Factory | Sucked down chute 23315 | -4/Factory | Entered Waste 23315 | -4/Waste | The area was eerily silent 23359 | -4/Waste | Discovered new exit (range 10) 23362 | -4/Waste | Identified exit to Factory 23390 | -4/Waste | Entered Factory 23405 | -4/Factory | Identified exit to Research 23435 | -4/Factory | Loaded intel: 8 recycling unit locations 23710 | -4/Factory | Repaired Exp. Sensor Array 23749 | -4/Factory | Identified Transdimensional Reconstructor 24000 | -4/Factory | Build established: Hacker-Scout 24195 | -4/Factory | Entered Upper Caves 24201 | -4/Upper Caves | Learned 4 Research zone layouts 24209 | -4/Upper Caves | Learned 8 Research zone layouts 24373 | -4/Upper Caves | Discovered new exit (range 16) 24375 | -4/Upper Caves | Attracted the attention of an 0b10 checkpoint 24377 | -4/Upper Caves | Identified exit to Upper Caves 24377 | -4/Upper Caves | Entered another Upper Caves area 24378 | -4/Upper Caves | Encountered a Warlord checkpoint 24378 | -4/Upper Caves | Identified exit to Warlord 24391 | -4/Upper Caves | Found Alien Artifact 24399 | -4/Upper Caves | Discovered exit to Research (range 17) 24430 | -4/Upper Caves | Build established: Machinist-Scout 24448 | -4/Upper Caves | Entered Warlord 24460 | -4/Warlord | System corruption cleaned by Quarantine Array 24543 | -4/Warlord | Learned Research trap positions 24543 | -4/Warlord | Learned Testing stockpile data 24543 | -4/Warlord | Learned 4 Armory zone layouts 24543 | -4/Warlord | Learned 4 Research zone layouts 24543 | -4/Warlord | Learned Research security intel 24543 | -4/Warlord | Learned Research terminal intel 24543 | -4/Warlord | Learned Research recycling unit intel 24543 | -4/Warlord | Learned Research garrison access intel 24660 | -4/Warlord | Warlord's base attacked by MAIN.C 24668 | -4/Warlord | Rebuked by Warlord 24689 | -4/Warlord | Found Vortex Catalyst Activator 24728 | -4/Warlord | Spotted B-86 Titan 24795 | -4/Warlord | Build established: Scout 24895 | -4/Warlord | Destroyed C0-VA3(g) 24994 | -4/Warlord | Opened side exit 25010 | -4/Warlord | Warlord forces counterattacked 25037 | -4/Warlord | Discovered new exit (range 9) 25044 | -4/Warlord | Identified exit to Proximity Caves 25044 | -4/Warlord | Entered Proximity Caves 25128 | -3/Proximity Caves | Spotted B-86 Titan 25159 | -3/Proximity Caves | Discovered exit to Research (range 6) 25161 | -3/Proximity Caves | Entered Research 25161 | -3/Research | Evolved 2 slots: Propulsion x1, Utility x1 25162 | -3/Research | Identified exit to Quarantine 25163 | -3/Research | Identified exit to Research 25165 | -3/Research | Loaded intel: 65 trap records 25167 | -3/Research | Loaded intel: 20 terminal locations 25168 | -3/Research | Loaded intel: 5 recycling unit locations 25169 | -3/Research | Loaded intel: 3 garrison access locations 25338 | -3/Research | Loaded intel: 5 recycling unit locations 25359 | -3/Research | Garrison activated, responded to threat 25361 | -3/Research | Revision forces began assault on 0b10 25474 | -3/Research | Build established: Hacker-Scout 25494 | -3/Research | Entered Quarantine 25550 | -3/Quarantine | Repaired Lyr. Light Armor Plating 25583 | -3/Quarantine | Found Alien Artifact 25583 | -3/Quarantine | Identified Phase Armor 25626 | -3/Quarantine | Discovered exit to Research (range 16) 25671 | -3/Quarantine | Spotted Fortress 25688 | -3/Quarantine | Discovered new exit (range 6) 25688 | -3/Quarantine | Discovered new exit (range 6) 25689 | -3/Quarantine | Identified exit to Protoforge 25689 | -3/Quarantine | Entered Protoforge 25701 | -3/Protoforge | Superfortress began startup sequence 25916 | -3/Protoforge | Spotted AP7-3 25916 | -3/Protoforge | Spotted AP7-3 25917 | -3/Protoforge | Spotted EXE-6 25917 | -3/Protoforge | Spotted EXE-6 25920 | -3/Protoforge | Spotted SKR-2 25920 | -3/Protoforge | Spotted SKR-2 25920 | -3/Protoforge | Spotted SKR-2 25934 | -3/Protoforge | UFD initiated attack on Protoforge 25934 | -3/Protoforge | Loaded intel: 3 recycling unit locations 25939 | -3/Protoforge | Spotted EXE-6 25939 | -3/Protoforge | Spotted EXE-6 25970 | -3/Protoforge | Optimus greeted in Protoforge 25986 | -3/Protoforge | Found Cep. XC Strikerail 26005 | -3/Protoforge | Found Exp. Core Analyzer 26008 | -3/Protoforge | Found Cep. XC Strikerail 26011 | -3/Protoforge | Lost 13 allies 26023 | -3/Protoforge | Forge Plexus network access discovered 26042 | -3/Protoforge | Spotted Decapitator 26042 | -3/Protoforge | Spotted Decapitator 26043 | -3/Protoforge | Spotted Decapitator 26043 | -3/Protoforge | Spotted Decapitator 26065 | -3/Protoforge | Met 7R-MNS 26081 | -3/Protoforge | Found Exp. Terror Saw 26085 | -3/Protoforge | Lost 5 parts (3n2u) 26097 | -3/Protoforge | Lost 3 allies 26147 | -3/Protoforge | Found Cep. Concussive Dispersal Blaster 26195 | -3/Protoforge | UFD reported confirmed Drillbomb installation 26268 | -3/Protoforge | UFD reported confirmed Drillbomb installation 26273 | -3/Protoforge | Spotted Hotshot 26278 | -3/Protoforge | Spotted Hotshot 26280 | -3/Protoforge | Spotted Hotshot 26295 | -3/Protoforge | Spotted Decapitator 26297 | -3/Protoforge | Spotted Decapitator 26297 | -3/Protoforge | Spotted Decapitator 26301 | -3/Protoforge | Build established: Scavenger-Sprinter 26305 | -3/Protoforge | Destroyed Decapitator 26307 | -3/Protoforge | Found Exp. Terror Saw 26378 | -3/Protoforge | Self-destructed Last Messages --------------- Plexus. 26328_ Decapitator Exp. Terror Saw severed. 26333_ 7R-MNS knocked back. 26333_ Knocked back. 26333_ 7R-MNS knocked back. 26335_ Acquired 29 matter. 26355_ Dropped Imp. Heavy Laser. 26361_ Knocked back. 26369_ X-82 Rainmaker suffers critical hit (Burn). 26370_ 0bP_NET: Lugger 607 inbound, all units not involved in other operations escort to target. 26370_ 7R-MNS knocked back. 26372_ Knocked back. 26373_ 7R-MNS knocked back. 26374_ Exp. Surge Thruster destroyed. 26375_ Knocked back. 26376_ X-82 Rainmaker suffers critical hit (Burn). 26376_ X-82 Rainmaker overheating. 26377_ 7R-MNS knocked back. 26378_ Knocked back. Map ----- +----------------------------------------------------+ | ####################??????????????????????????? | | " ####################??????????????????????????? | | ############################??????????????????? | | ############################??????????????????? | | ###""""#####""""############??????????????????? | | #### == ##### !############??????????????????? | | ####??????????????????? | | ####??????????????????? | | ####??????????????????? | | ####??????????????????? | | ####??????????????????? | | ! ####??????????????????? | | #####===="#### ] #####% ####??????????????????? | | "#####""""#####""""#####= ####??????????????????? | | "#######################xx ####??????????????????? | | "#######################!%x####??????????????????? | | ######################## ###??????????????????? | | ######################## ###################### | | ####################### ##################### | | ####################### ##################### | | ######################## ####################### | | ??#### = | | ??#### "" "" == | | ??#### """" " g %= """ " | | ??#### "" " "" " "" "" | | ###### """ @ """ "" " | | ?? ## "" "" """ | | ?? ## " "" / """" | | ?? ## "" "" " " | | ?? ## " " " | | ?? ## " "" " " "" " | | "" ## " " "" """ "" " | | """ ## "" "" " | | ?T" ## "" "" """ " """ | | """ ## """"" "" " """" " " "" "" | | "" ## " " " " """ " | | ## " " "" """" " " " """ | | ## ### """"" "" "" " " | | ##### " "" " """"""""" | | ##### """" "" """"""""""""""" "" | | ##### """" "" """"""""""""""""" "" | | ##### " """"""""""""""""""" | | ##### "" " """"""""""""""""""""" | | ##### " """"""""""""""""""""""" | | ##### " "" """"""""""""""""""""""""" | | ##### """" " """"""""""""""""""""""""""" | | ###### "" "" " """"""""""""""""""""""""""" | | ###### "" " "" """"""""""""""""""""""""""" | | ###### "" " """""""""""""""""""""""""""" | | ###### "" " """""""""""""""""""""""""""" | +----------------------------------------------------+ Best States ------------- Heat Dissipation 66 Energy Generation 29 Energy Capacity 315 Matter Stores 300 Matter Capacity 300 Sight Range 18 Robot Scan Range 20 Terrain Scan Range 16 Terrain Scan Density 85 ECM Strength 1 Base Temperature (-) 200 Corruption Block 15 Armor Coverage 300 Resistance: KI 20 Utility Shielding 66 Evasion (%) 78 Targeting Accuracy 6 Melee Accuracy 5 Core Analysis 8 Recoil Reduction 2 Offensive Hacking 28 Defensive Hacking 11 Authchip Count 2 Trap Extractor Capacity 6 Item Schematics ----------------- Imp. Utility Shielding | -9/Materials | Scanalyzed Imp. Trap Extractor | -9/Materials | Scanalyzed Imp. Flight Unit | -9/Materials | Scanalyzed Assault Rifle | -9/Materials | Scanalyzed Lrg. Storage Unit | -9/Materials | Hacked Lgt. Cannon | -9/Materials | Hacked Exp. Sensor Array | -8/Materials | Scanalyzed Hacking Suite | -8/Materials | Scanalyzed Rocket Launcher | -8/Materials | Scanalyzed System Restoration Module | -8/Recycling | Hacked Mak. Leg | -8/Scraptown | Extrapolated Mak. Coolant Network | -8/Scraptown | Extrapolated 0b10 Decoder Chip [Generic] | -8/Scraptown | Extrapolated 0b10 Decoder Chip [Scout] | -8/Scraptown | Extrapolated 0b10 Decoder Chip [Skirmisher] | -8/Scraptown | Extrapolated Mak. Sensor Array | -8/Scraptown | Extrapolated Machine Rigger | -8/Scraptown | Extrapolated Spk. Treads | -8/Scraptown | Extrapolated Deep Structural Scanner | -8/Scraptown | Extrapolated Mak. Targeting Computer | -8/Scraptown | Extrapolated Cld. VTOL Module | -6/Factory | Hacked Imp. Hacking Suite | -6/Extension | Hacked Centrium Medium Armor Plating | -5/Factory | Scanalyzed Mic. Fission Core | -5/Factory | Hacked Adv. Corruption Screen | -5/Factory | Hacked ECM Suite | -5/Factory | Hacked Mni. Smartbomb Launcher | -5/Factory | Hacked Cld. Plasma Cannon | -5/Factory | Scanalyzed Assault Drone Bay | -5/Zhirov | Free Exp. Optical Array | -5/Zhirov | Free Imp. Arc Thrower | -5/Zhirov | Free Exp. Heat Sink | -5/Zhirov | Free Mic. Antimatter Reactor | -4/Factory | Hacked Cld. Nuclear Pulse Thruster | -4/Factory | Hacked Adv. Reaction Control System | -4/Factory | Scanalyzed Battle Rifle | -4/Factory | Scanalyzed Imp. System Restoration Module | -4/Factory | Scanalyzed Biometal Heavy Treads | -4/Factory | Hacked Cld. Field Propulsion Drive | -3/Protoforge | Archive Helical Railgun | -3/Protoforge | Archive Robot Schematics ------------------ M-28 Smith | -6/Factory | Hacked Fabricated ------------ Cld. VTOL Module | x1 | -6/Factory | Authchip Cld. VTOL Module | x1 | -6/Factory | Authchip Cld. VTOL Module | x1 | -6/Factory Cld. VTOL Module | x1 | -6/Factory Cld. VTOL Module | x1 | -6/Factory | Authchip Exp. Sensor Array | x1 | -5/Factory | Authchip Deep Structural Scanner | x1 | -5/Factory Imp. Corruption Screen | x2 | -5/Factory | Preloaded Mni. Smartbomb Launcher | x1 | -5/Factory Mic. Antimatter Reactor | x2 | -4/Factory | Authchip Repaired ---------- Assault Rifle | 58% | -9/Materials Exp. Sensor Array | 62% | -9/Materials Imp. Flight Unit | 52% | -8/Storage Imp. VTOL Module | 64% | -6/Factory Lgt. Nuclear Core | 38% | -6/Factory Enh. Autogun | 48% | -6/Factory Lgt. Fission Core | 66% | -6/Factory Cld. VTOL Module | 5% | -5/Factory Cld. VTOL Module | 35% | -5/Factory Power Sword | 40% | -5/Factory Cld. VTOL Module | 25% | -5/Factory Cld. Plasma Cannon | 32% | -5/Factory Lgt. Fission Core | 66% | -5/Factory Lyr. Light Armor Plating | 41% | -5/Factory Exp. Sensor Array | 34% | -4/Factory Nuclear Pulse Array | 16% | -4/Factory Lyr. Light Armor Plating | 38% | -4/Factory Cld. VTOL Module | 46% | -4/Factory Adv. Reaction Control System | 28% | -4/Factory | Broken Cld. VTOL Module | 31% | -4/Factory Lyr. Light Armor Plating | 59% | -4/Factory Exp. Sensor Array | 24% | -4/Factory Lyr. Light Armor Plating | 39% | -3/Quarantine Alien Tech Used ----------------- Integrated Dissipator Phase Armor Achievements -------------- None Challenges ------------ None Game ------ Seed BarrageHeavyDatajack Manual? 0 Play Time 07:50:39 Cumulative 657.3 hours Start 2025.06.28 @ 00:44:23 End 2025.07.03 @ 22:02:06 Sessions 13 Manual Loads 0 Difficulty Rogue Special Mode None Game No. 297 Rogue 153 Adventurer 144 Explorer 0 Win Type - Total 11 Types 4/1/5/1/0/0/0/0/0/0 Lore% 84 Gallery% 81 Achievement% 73 Wizard Run 0 Options --------- Layout 0 ASCII 0 Keyboard 0 Movement Mouse Keybinds 0 Fullscreen 2 Font 20/SmallcapsGlow Map View 66x50 Zoom Use 0% Tactical HUD 1 Map Filters NONE Filters NONE Steam 1 RUN: f64499ec-bb33-4982-92a2-91d044c0ee2b